{"text_format":"1","workbook":"xlsx","n_sheets":3,"sheets":["Alle Parteien","Alle Parteien (Formel)","Alle Parteien (VBA)"],"not_rendered":{"charts":0,"images":0,"macros":1,"external_links":0,"defined_names":3,"comments":0,"pivot_tables":0},"unopened":[],"bounds":{"document_bytes":16777216,"sheet_cells":100000,"rows_first":2000,"rows_last":500,"rows_between":2000,"halvings":0,"cell_chars":16384,"cell_head_chars":4096},"cells_cut":0,"cells_raw":0,"read":"whole","date_system":"1900"}

{"sheet":"Alle Parteien","index":0,"n_rows":643,"n_cols":1,"rows_kept":643,"cut":false,"hidden":false,"merged":[]}
["Alphabetische Liste aller Mitglieder \ndes 18. Deutschen Bundestages, Stand 04.05.2015"]
["Aken, Jan van, Die Linke"]
["Albani, Stephan, CDU/CSU"]
["Albsteiger, Katrin, CDU/CSU"]
["Alpers, Agnes, Die Linke *"]
["Altmaier, Peter, CDU/CSU"]
["Amtsberg, Luise, Bündnis 90/Die Grünen"]
["Andreae, Kerstin, Bündnis 90/Die Grünen"]
["Annen, Niels, SPD"]
["Arndt-Brauer, Ingrid, SPD"]
["Arnold, Rainer, SPD"]
["Auernhammer, Artur, CDU/CSU"]
["Baehrens, Heike, SPD"]
["Baerbock, Annalena, Bündnis 90/Die Grünen"]
["Bahr, Ulrike, SPD"]
["Bär, Dorothee, CDU/CSU"]
["Barchmann, Heinz-Joachim, SPD"]
["Bareiß, Thomas, CDU/CSU"]
["Barley, Dr. Katarina, SPD"]
["Barnett, Doris, SPD"]
["Bartels, Dr. Hans-Peter, SPD"]
["Barthel, Klaus, SPD"]
["Barthle, Norbert, CDU/CSU"]
["Bartke, Dr. Matthias, SPD"]
["Bartol, Sören, SPD"]
["Bartsch, Dr. Dietmar, Die Linke"]
["Bas, Bärbel, SPD"]
["Bätzing-Lichtenthäler, Sabine, SPD *"]
["Baumann, Günter, CDU/CSU"]
["Beck (Bremen), Marieluise, Bündnis 90/Die Grünen"]
["Beck (Köln), Volker, Bündnis 90/Die Grünen"]
["Becker, Dirk, SPD"]
["Beckmeyer, Uwe, SPD"]
["Beermann, Maik, CDU/CSU"]
["Behrens, Herbert, Die Linke"]
["Behrens (Börde), Manfred, CDU/CSU"]
["Bellmann, Veronika, CDU/CSU"]
["Benning, Sybille, CDU/CSU"]
["Berghegger, Dr. André, CDU/CSU"]
["Bergner, Dr. Christoph, CDU/CSU"]
["Bertram, Ute, CDU/CSU"]
["Beyer, Peter, CDU/CSU"]
["Bilger, Steffen, CDU/CSU"]
["Binder, Karin, Die Linke"]
["Binding (Heidelberg), Lothar, SPD"]
["Binninger, Clemens, CDU/CSU"]
["Birkwald, Matthias W., Die Linke"]
["Bleser, Peter, CDU/CSU"]
["Blienert, Burkhard, SPD"]
["Bluhm, Heidrun, Die Linke"]
["Böhmer, Prof. Dr. Maria, CDU/CSU"]
["Bosbach, Wolfgang, CDU/CSU"]
["Brackmann, Norbert, CDU/CSU"]
["Brähmig, Klaus, CDU/CSU"]
["Brand, Michael, CDU/CSU"]
["Brandl, Dr. Reinhard, CDU/CSU"]
["Brandt, Helmut, CDU/CSU"]
["Brantner, Dr. Franziska, Bündnis 90/Die Grünen"]
["Brase, Willi, SPD"]
["Brauksiepe, Dr. Ralf, CDU/CSU"]
["Braun, Dr. Helge, CDU/CSU"]
["Brehmer, Heike, CDU/CSU"]
["Brinkhaus, Ralph, CDU/CSU"]
["Brugger, Agnieszka, Bündnis 90/Die Grünen"]
["Brunner, Dr. Karl-Heinz, SPD"]
["Buchholz, Christine, Die Linke"]
["Bulling-Schröter, Eva, Die Linke"]
["Bulmahn, Edelgard, SPD"]
["Bülow, Marco, SPD"]
["Burkert, Martin, SPD"]
["Caesar, Cajus, CDU/CSU"]
["Castellucci, Prof. Dr. Lars, SPD"]
["Claus, Roland, Die Linke"]
["Connemann, Gitta, CDU/CSU"]
["Crone, Petra, SPD"]
["Daldrup, Bernhard, SPD"]
["Dagdelen, Sevim, Die Linke"]
["De Ridder, Dr. rer. pol. Daniela, SPD"]
["Dehm, Dr. Diether, Die Linke"]
["Deligöz, Ekin, Bündnis 90/Die Grünen"]
["Diaby, Dr. rer. nat. Karamba, SPD"]
["Dinges-Dierig, Alexandra, CDU/CSU"]
["Dittmar, Sabine, SPD"]
["Dobrindt, Alexander, CDU/CSU"]
["Donth, Michael, CDU/CSU"]
["Dörflinger, Thomas, CDU/CSU"]
["Dörmann, Martin, SPD"]
["Dörner, Katja, Bündnis 90/Die Grünen"]
["Dött, Marie-Luise, CDU/CSU"]
["Drobinski-Weiß, Elvira, SPD"]
["Dröge, Katharina, Bündnis 90/Die Grünen"]
["Durz, Hansjörg, CDU/CSU"]
["Eberl, Iris, CDU/CSU"]
["Ebner, Harald, Bündnis 90/Die Grünen"]
["Eckenbach, Jutta, CDU/CSU"]
["Edathy, Sebastian, SPD *"]
["Ehrmann, Siegmund, SPD"]
["Engelmeier, Michaela, SPD"]
["Erler, Dr. h.c. Gernot, SPD"]
["Ernst, Klaus, Die Linke"]
["Ernstberger, Petra, SPD"]
["Esken, Saskia, SPD"]
["Evers-Meyer, Karin, SPD"]
["Fabritius, Dr. Bernd, CDU/CSU"]
["Färber, Hermann, CDU/CSU"]
["Fechner, Dr. Johannes, SPD"]
["Feiler, Uwe, CDU/CSU"]
["Feist, Dr. Thomas, CDU/CSU"]
["Felgentreu, Dr. Fritz, SPD"]
["Ferlemann, Enak, CDU/CSU"]
["Ferner, Elke, SPD"]
["Finckh-Krämer, Dr. rer. nat. Ute, SPD"]
["Fischbach, Ingrid, CDU/CSU"]
["Fischer (Karlsruhe-Land), Axel E., CDU/CSU"]
["Fischer (Hamburg), Dirk, CDU/CSU"]
["Flachsbarth, Dr. Maria, CDU/CSU"]
["Flisek, Christian, SPD"]
["Flosbach, Klaus-Peter, CDU/CSU"]
["Fograscher, Gabriele, SPD"]
["Franke, Dr. Edgar, SPD"]
["Freese, Ulrich, SPD"]
["Frei, Thorsten, CDU/CSU"]
["Freitag, Dagmar, SPD"]
["Freudenstein, Dr. Astrid, CDU/CSU"]
["Friedrich (Hof), Dr. Hans-Peter, CDU/CSU"]
["Frieser, Michael, CDU/CSU"]
["Fuchs, Dr. Michael, CDU/CSU"]
["Fuchtel, Hans-Joachim, CDU/CSU"]
["Funk, Alexander, CDU/CSU"]
["Gabriel, Sigmar, SPD"]
["Gädechens, Ingo, CDU/CSU"]
["Gambke, Dr. Thomas, Bündnis 90/Die Grünen"]
["Gastel, Matthias, Bündnis 90/Die Grünen"]
["Gauweiler, Dr. Peter, CDU/CSU *"]
["Gebhart, Dr. Thomas, CDU/CSU"]
["Gehrcke, Wolfgang, Die Linke"]
["Gehring, Kai, Bündnis 90/Die Grünen"]
["Gerdes, Michael, SPD"]
["Gerig, Alois, CDU/CSU"]
["Gerster, Martin, SPD"]
["Gienger, Eberhard, CDU/CSU"]
["Giousouf, Cemile, CDU/CSU"]
["Gleicke, Iris, SPD"]
["Glöckner, Angelika, SPD"]
["Gohlke, Nicole, Die Linke"]
["Golze, Diana, Die Linke *"]
["Göppel, Josef, CDU/CSU"]
["Göring-Eckardt, Katrin, Bündnis 90/Die Grünen"]
["Gottschalck, Ulrike, SPD"]
["Griese, Kerstin, SPD"]
["Grindel, Reinhard, CDU/CSU"]
["Groden-Kranich, Ursula, CDU/CSU"]
["Gröhe, Hermann, CDU/CSU"]
["Gröhler, Klaus-Dieter, CDU/CSU"]
["Groneberg, Gabriele, SPD"]
["Groß, Michael, SPD"]
["Grosse-Brömer, Michael, CDU/CSU"]
["Grotelüschen, Astrid, CDU/CSU"]
["Groth, Annette, Die Linke"]
["Grötsch, Uli, SPD"]
["Grübel, Markus, CDU/CSU"]
["Grund, Manfred, CDU/CSU"]
["Grundmann, Oliver, CDU/CSU"]
["Grütters, Monika, CDU/CSU"]
["Gundelach, Dr. Herlind, CDU/CSU"]
["Gunkel, Wolfgang, SPD"]
["Güntzler, Fritz, CDU/CSU"]
["Gutting, Olav, CDU/CSU"]
["Gysi, Dr. Gregor, Die Linke"]
["Haase, Christian, CDU/CSU"]
["Hagedorn, Bettina, SPD"]
["Hagl-Kehl, Rita, SPD"]
["Hahn, Dr. André, Die Linke"]
["Hahn, Florian, CDU/CSU"]
["Hajduk, Anja, Bündnis 90/Die Grünen"]
["Hakverdi, Metin, SPD"]
["Hampel, Ulrich, SPD"]
["Hänsel, Heike, Die Linke"]
["Harbarth, Dr. Stephan, CDU/CSU"]
["Hardt, Jürgen, CDU/CSU"]
["Hartmann (Wackernheim), Michael, SPD"]
["Hartmann, Sebastian, SPD"]
["Hasselfeldt, Gerda, CDU/CSU"]
["Haßelmann, Britta, Bündnis 90/Die Grünen"]
["Hauer, Matthias, CDU/CSU"]
["Hauptmann, Mark, CDU/CSU"]
["Heck, Dr. Stefan, CDU/CSU"]
["Heidenblut, Dirk, SPD"]
["Heider, Dr. Matthias, CDU/CSU"]
["Heiderich, Helmut, CDU/CSU"]
["Heil (Peine), Hubertus, SPD"]
["Heil, Mechthild, CDU/CSU"]
["Hein, Dr. Rosemarie, Die Linke"]
["Heinrich (Chemnitz), Frank, CDU/CSU"]
["Heinrich, Gabriela, SPD"]
["Held, Marcus, SPD"]
["Helfrich, Mark, CDU/CSU"]
["Heller, Uda, CDU/CSU"]
["Hellmich, Wolfgang, SPD"]
["Hellmuth, Jörg, CDU/CSU"]
["Hendricks, Dr. Barbara, SPD"]
["Henke, Rudolf, CDU/CSU"]
["Henn, Heidtrud, SPD"]
["Hennrich, Michael, CDU/CSU"]
["Herzog, Gustav, SPD"]
["Heveling, Ansgar, CDU/CSU"]
["Hiller-Ohm, Gabriele, SPD"]
["Hintze, Peter, CDU/CSU"]
["Hinz (Essen), Petra, SPD"]
["Hinz (Herborn), Priska, Bündnis 90/Die Grünen *"]
["Hirte, Christian, CDU/CSU"]
["Hirte, Prof. Dr. iur. Heribert, CDU/CSU"]
["Hitschler, Thomas, SPD"]
["Hochbaum, Robert, CDU/CSU"]
["Hoffmann, Alexander, CDU/CSU"]
["Hoffmann (Dortmund), Thorsten, CDU/CSU"]
["Hofreiter, Dr. Anton, Bündnis 90/Die Grünen"]
["Höger, Inge, Die Linke"]
["Högl, Dr. Eva, SPD"]
["Höhn, Bärbel, Bündnis 90/Die Grünen"]
["Holmeier, Karl, CDU/CSU"]
["Holzenkamp, Franz-Josef, CDU/CSU"]
["Hoppenstedt, Dr. Hendrik, CDU/CSU"]
["Horb, Margaret, CDU/CSU"]
["Hornhues, Bettina, CDU/CSU"]
["Huber, Karl-Heinz (Charles M.), CDU/CSU"]
["Hübinger, Anette, CDU/CSU"]
["Hunko, Andrej, Die Linke"]
["Hupach, Sigrid, Die Linke"]
["Hüppe, Hubert, CDU/CSU"]
["Ilgen, Matthias, SPD"]
["Irlstorfer, Erich, CDU/CSU"]
["Janecek, Dieter, Bündnis 90/Die Grünen"]
["Jantz, Christina, SPD"]
["Jarzombek, Thomas, CDU/CSU"]
["Jelpke, Ulla, Die Linke"]
["Jörrißen, Sylvia, CDU/CSU"]
["Jost, Reinhold, SPD *"]
["Jung, Andreas, CDU/CSU"]
["Jung, Dr. Franz Josef, CDU/CSU"]
["Jung, Xaver, CDU/CSU"]
["Junge, Frank, SPD"]
["Juratovic, Josip, SPD"]
["Jurk, Thomas, SPD"]
["Jüttner, Dr. Egon, CDU/CSU"]
["Kaczmarek, Oliver, SPD"]
["Kahrs, Johannes, SPD"]
["Kalb, Bartholomäus, CDU/CSU"]
["Kammer, Hans-Werner, CDU/CSU"]
["Kampeter, Steffen, CDU/CSU"]
["Kampmann, Christina, SPD"]
["Kanitz, Steffen, CDU/CSU"]
["Kapschack, Ralf, SPD"]
["Karawanskij, Susanna, Die Linke"]
["Karl, Alois, CDU/CSU"]
["Karliczek, Anja, CDU/CSU"]
["Kassner, Kerstin, Die Linke"]
["Kaster, Bernhard, CDU/CSU"]
["Katzmarek, Gabriele, SPD"]
["Kauder, Volker, CDU/CSU"]
["Kaufmann, Dr. Stefan, CDU/CSU"]
["Kekeritz, Uwe, Bündnis 90/Die Grünen"]
["Kelber, Ulrich, SPD"]
["Kermer, Marina, SPD"]
["Keul, Katja, Bündnis 90/Die Grünen"]
["Kiesewetter, Roderich, CDU/CSU"]
["Kindler, Sven-Christian, Bündnis 90/Die Grünen"]
["Kippels, Dr. Georg, CDU/CSU"]
["Kipping, Katja, Die Linke"]
["Kiziltepe, Cansel, SPD"]
["Klare, Arno, SPD"]
["Klein, Volkmar, CDU/CSU"]
["Klein-Schmeink, Maria, Bündnis 90/Die Grünen"]
["Klimke, Jürgen, CDU/CSU"]
["Klingbeil, Lars, SPD"]
["Knoerig, Axel, CDU/CSU"]
["Koenigs, Tom, Bündnis 90/Die Grünen"]
["Koeppen, Jens, CDU/CSU"]
["Kofler, Dr. Bärbel, SPD"]
["Kolbe, Daniela, SPD"]
["Kömpel, Birgit, SPD"]
["Koob, Markus, CDU/CSU"]
["Körber, Carsten, CDU/CSU"]
["Korte, Jan, Die Linke"]
["Koschyk, Hartmut, CDU/CSU"]
["Kotting-Uhl, Sylvia, Bündnis 90/Die Grünen"]
["Kovac, Kordula, CDU/CSU"]
["Kramme, Anette, SPD"]
["Krellmann, Jutta, Die Linke"]
["Kretschmer, Michael, CDU/CSU"]
["Krichbaum, Gunther, CDU/CSU"]
["Krings, Dr. Günter, CDU/CSU"]
["Krischer, Oliver, Bündnis 90/Die Grünen"]
["Krüger, Dr. Hans-Ulrich, SPD"]
["Kruse, Rüdiger, CDU/CSU"]
["Kudla, Bettina, CDU/CSU"]
["Kühn (Tübingen), Christian, Bündnis 90/Die Grünen"]
["Kühn (Dresden), Stephan, Bündnis 90/Die Grünen"]
["Kühn-Mengel, Helga, SPD"]
["Kühne, Dr. Roy, CDU/CSU"]
["Künast, Renate, Bündnis 90/Die Grünen"]
["Kunert, Katrin, Die Linke"]
["Kurth, Markus, Bündnis 90/Die Grünen"]
["Lach, Günter, CDU/CSU"]
["Lagosky, Uwe, CDU/CSU"]
["Lambrecht, Christine, SPD"]
["Lamers, Dr. Dr. h.c. Karl A., CDU/CSU"]
["Lämmel, Andreas G., CDU/CSU"]
["Lammert, Prof. Dr. Norbert, CDU/CSU"]
["Landgraf, Katharina, CDU/CSU"]
["Lange (Backnang), Christian, SPD"]
["Lange, Ulrich, CDU/CSU"]
["Lanzinger, Barbara, CDU/CSU"]
["Launert, Dr. Silke, CDU/CSU"]
["Lauterbach, Dr. Karl, SPD"]
["Lay, Caren, Die Linke"]
["Lazar, Monika, Bündnis 90/Die Grünen"]
["Lehrieder, Paul, CDU/CSU"]
["Leidig, Sabine, Die Linke"]
["Leikert, Dr. Katja, CDU/CSU"]
["Lemke, Steffi, Bündnis 90/Die Grünen"]
["Lemme, Steffen-Claudio, SPD"]
["Lengsfeld, Dr. Philipp, CDU/CSU"]
["Lenkert, Ralph, Die Linke"]
["Lenz, Dr. Andreas, CDU/CSU"]
["Lerchenfeld, Philipp Graf, CDU/CSU"]
["Leutert, Michael, Die Linke"]
["Leyen, Dr. Ursula von der, CDU/CSU"]
["Lezius, Antje, CDU/CSU"]
["Liebich, Stefan, Die Linke"]
["Liebing, Ingbert, CDU/CSU"]
["Lietz, Matthias, CDU/CSU"]
["Lindholz, Andrea, CDU/CSU"]
["Lindner, Dr. Tobias, Bündnis 90/Die Grünen"]
["Linnemann, Dr. Carsten, CDU/CSU"]
["Lips, Patricia, CDU/CSU"]
["Lischka, Burkhard, SPD"]
["Lorenz, Wilfried, CDU/CSU"]
["Lösekrug-Möller, Gabriele, SPD"]
["Lotze, Hiltrud, SPD"]
["Lötzsch, Dr. Gesine, Die Linke"]
["Lücking-Michel, Dr. Claudia, CDU/CSU"]
["Luczak, Dr. Jan-Marco, CDU/CSU"]
["Ludwig, Daniela, CDU/CSU"]
["Lühmann, Kirsten, SPD"]
["Lutze, Thomas, Die Linke"]
["Maag, Karin, CDU/CSU"]
["Magwas, Yvonne, CDU/CSU"]
["Mahlberg, Thomas, CDU/CSU"]
["Maisch, Nicole, Bündnis 90/Die Grünen"]
["Maizière, Dr. Thomas de, CDU/CSU"]
["Malecha-Nissen, Dr. Birgit, SPD"]
["Manderla, Gisela, CDU/CSU"]
["Marks, Caren, SPD"]
["Marschall, Matern von, CDU/CSU"]
["Marwitz, Hans-Georg von der, CDU/CSU"]
["Mast, Katja, SPD"]
["Mattfeldt, Andreas, CDU/CSU"]
["Mattheis, Hilde, SPD"]
["Mayer (Altötting), Stephan, CDU/CSU"]
["Meier, Reiner, CDU/CSU"]
["Meister, Dr. Michael, CDU/CSU"]
["Meiwald, Peter, Bündnis 90/Die Grünen"]
["Menz, Birgit, Die Linke"]
["Merkel, Dr. Angela, CDU/CSU"]
["Metzler, Jan, CDU/CSU"]
["Michalk, Maria, CDU/CSU"]
["Michelbach, Dr. h. c. Hans, CDU/CSU"]
["Middelberg, Dr. Mathias, CDU/CSU"]
["Miersch, Dr. Matthias, SPD"]
["Mihalic, Irene, Bündnis 90/Die Grünen"]
["Mindrup, Klaus, SPD"]
["Mißfelder, Philipp, CDU/CSU"]
["Mittag, Susanne, SPD"]
["Möhring, Cornelia, Die Linke"]
["Monstadt, Dietrich, CDU/CSU"]
["Möring, Karsten, CDU/CSU"]
["Mortler, Marlene, CDU/CSU"]
["Motschmann, Elisabeth, CDU/CSU"]
["Movassat, Niema, Die Linke"]
["Müller, Bettina, SPD"]
["Müller (Braunschweig), Carsten, CDU/CSU"]
["Müller (Chemnitz), Detlef, SPD"]
["Müller, Dr. Gerd, CDU/CSU"]
["Müller (Potsdam), Norbert, Die Linke"]
["Müller (Erlangen), Stefan, CDU/CSU"]
["Müller-Gemmeke, Beate, Bündnis 90/Die Grünen"]
["Müntefering, Michelle, SPD"]
["Murmann, Dr. Philipp, CDU/CSU"]
["Mutlu, Özcan, Bündnis 90/Die Grünen"]
["Mützenich, Dr. Rolf, SPD"]
["Nahles, Andrea, SPD"]
["Neu, Dr. Alexander S., Die Linke"]
["Nick, Dr. Andreas, CDU/CSU"]
["Nietan, Dietmar, SPD"]
["Nissen, Ulli, SPD"]
["Noll, Michaela, CDU/CSU"]
["Nord, Thomas, Die Linke"]
["Notz, Dr. Konstantin von, Bündnis 90/Die Grünen"]
["Nouripour, Omid, Bündnis 90/Die Grünen"]
["Nowak, Helmut, CDU/CSU"]
["Nüßlein, Dr. iur. Georg, CDU/CSU"]
["Obermeier, Julia, CDU/CSU"]
["Oellers, Wilfried, CDU/CSU"]
["Oppermann, Thomas, SPD"]
["Oßner, Florian, CDU/CSU"]
["Ostendorff, Friedrich, Bündnis 90/Die Grünen"]
["Ostermann, Dr. Tim, CDU/CSU"]
["Otte, Henning, CDU/CSU"]
["Özdemir, Cem, Bündnis 90/Die Grünen"]
["Özdemir (Duisburg), Mahmut, SPD"]
["Özoguz, Aydan, SPD"]
["Pahlmann, Ingrid, CDU/CSU"]
["Pantel, Sylvia, CDU/CSU"]
["Paschke, Markus, SPD"]
["Patzelt, Martin, CDU/CSU"]
["Pätzold, Dr. Martin, CDU/CSU"]
["Pau, Petra, Die Linke"]
["Paus, Lisa, Bündnis 90/Die Grünen"]
["Petry, Christian, SPD"]
["Petzold (Havelland), Harald, Die Linke"]
["Petzold, Ulrich, CDU/CSU"]
["Pfeiffer, Dr. Joachim, CDU/CSU"]
["Pfeiffer, Sibylle, CDU/CSU"]
["Pflugradt, Jeannine, SPD"]
["Pilger, Detlev, SPD"]
["Pitterle, Richard, Die Linke"]
["Pofalla, Ronald, CDU/CSU *"]
["Pols, Eckhard, CDU/CSU"]
["Poschmann, Sabine, SPD"]
["Poß, Joachim, SPD"]
["Post (Minden), Achim, SPD"]
["Post, Florian, SPD"]
["Pothmer, Brigitte, Bündnis 90/Die Grünen"]
["Priesmeier, Dr. Wilhelm, SPD"]
["Pronold, Florian, SPD"]
["Raabe, Dr. Sascha, SPD"]
["Raatz, Dr. Simone, SPD"]
["Rabanus, Martin, SPD"]
["Rachel, Thomas, CDU/CSU"]
["Radomski, Kerstin, CDU/CSU"]
["Radwan, Alexander, CDU/CSU"]
["Rainer, Alois, CDU/CSU"]
["Ramsauer, Dr. Peter, CDU/CSU"]
["Rawert, Mechthild, SPD"]
["Rebmann, Stefan, SPD"]
["Rehberg, Eckhardt, CDU/CSU"]
["Reiche (Potsdam), Katherina, CDU/CSU"]
["Reichenbach, Gerold, SPD"]
["Reimann, Dr. Carola, SPD"]
["Renner, Martina, Die Linke"]
["Riebsamen, Lothar, CDU/CSU"]
["Rief, Josef, CDU/CSU"]
["Riesenhuber, Prof. Dr. Heinz, CDU/CSU"]
["Rimkus, Andreas, SPD"]
["Rix, Sönke, SPD"]
["Rohde, Dennis, SPD"]
["Röring, Johannes, CDU/CSU"]
["Rosemann, Dr. Martin, SPD"]
["Röspel, René, SPD"]
["Rossmann, Dr. Ernst Dieter, SPD"]
["Rößner, Tabea, Bündnis 90/Die Grünen"]
["Roth (Augsburg), Claudia, Bündnis 90/Die Grünen"]
["Roth (Heringen), Michael, SPD"]
["Röttgen, Dr. Norbert, CDU/CSU"]
["Rüddel, Erwin, CDU/CSU"]
["Rüffer, Corinna, Bündnis 90/Die Grünen"]
["Rupprecht, Albert, CDU/CSU"]
["Rüthrich, Susann, SPD"]
["Rützel, Bernd, SPD"]
["Saathoff, Johann, SPD"]
["Sarrazin, Manuel, Bündnis 90/Die Grünen"]
["Sawade, Annette, SPD"]
["Schabedoth, Dr. Hans-Joachim, SPD"]
["Schäfer (Saalstadt), Anita, CDU/CSU"]
["Schäfer (Bochum), Axel, SPD"]
["Scharfenberg, Elisabeth, Bündnis 90/Die Grünen"]
["Schäuble, Dr. Wolfgang, CDU/CSU"]
["Schauws, Ulle, Bündnis 90/Die Grünen"]
["Schavan, Annette, CDU/CSU *"]
["Scheer, Dr. Nina, SPD"]
["Scheuer, Andreas, CDU/CSU"]
["Schick, Dr. Gerhard, Bündnis 90/Die Grünen"]
["Schieder, Marianne, SPD"]
["Schiefner, Udo, SPD"]
["Schiewerling, Karl, CDU/CSU"]
["Schimke, Jana, CDU/CSU"]
["Schindler, Norbert, CDU/CSU"]
["Schipanski, Tankred, CDU/CSU"]
["Schlecht, Michael, Die Linke"]
["Schlegel, Dr. Dorothee, SPD"]
["Schmelzle, Heiko, CDU/CSU"]
["Schmidt (Fürth), Christian, CDU/CSU"]
["Schmidt (Wetzlar), Dagmar, SPD"]
["Schmidt, Dr. Frithjof, Bündnis 90/Die Grünen"]
["Schmidt (Ühlingen), Gabriele, CDU/CSU"]
["Schmidt (Berlin), Matthias, SPD"]
["Schmidt (Aachen), Ulla, SPD"]
["Schmitt (Althengstett), Ronja, CDU/CSU"]
["Schneider (Erfurt), Carsten, SPD"]
["Schnieder, Patrick, CDU/CSU"]
["Schockenhoff, Dr. Andreas, CDU/CSU *"]
["Schön (St. Wendel), Nadine, CDU/CSU"]
["Schröder (Wiesbaden), Dr. Kristina, CDU/CSU"]
["Schröder, Dr. Ole, CDU/CSU"]
["Schulte, Ursula, SPD"]
["Schulte-Drüggelte, Bernhard, CDU/CSU"]
["Schulz (Spandau), Swen, SPD"]
["Schulz-Asche, Kordula, Bündnis 90/Die Grünen"]
["Schulze, Dr. Klaus-Peter, CDU/CSU"]
["Schummer, Uwe, CDU/CSU"]
["Schurer, Ewald, SPD"]
["Schuster (Weil am Rhein), Armin, CDU/CSU"]
["Schwabe, Frank, SPD"]
["Schwartze, Stefan, SPD"]
["Schwarz, Andreas, SPD"]
["Schwarzelühr-Sutter, Rita, SPD"]
["Schwarzer, Christina, CDU/CSU"]
["Seif, Detlef, CDU/CSU"]
["Selle, Johannes, CDU/CSU"]
["Sendker, Reinhold, CDU/CSU"]
["Sensburg, Prof. Dr. Patrick, CDU/CSU"]
["Siebert, Bernd, CDU/CSU"]
["Sieling, Dr. Carsten, SPD"]
["Silberhorn, Thomas, CDU/CSU"]
["Singhammer, Johannes, CDU/CSU"]
["Sitte, Dr. Petra, Die Linke"]
["Sorge, Tino, CDU/CSU"]
["Spahn, Jens, CDU/CSU"]
["Spiering, Rainer, SPD"]
["Spinrath, Norbert, SPD"]
["Stadler, Svenja, SPD"]
["Stamm-Fibich, Martina, SPD"]
["Stauche, Carola, CDU/CSU"]
["Steffel, Dr. Frank, CDU/CSU"]
["Steffen, Sonja, SPD"]
["Stefinger, Dr. Wolfgang, CDU/CSU"]
["Stegemann, Albert, CDU/CSU"]
["Stein, Peter, CDU/CSU"]
["Steinbach, Erika, CDU/CSU"]
["Steinbrück, Peer, SPD"]
["Steineke, Sebastian, CDU/CSU"]
["Steiniger, Johannes, CDU/CSU"]
["Steinke, Kersten, Die Linke"]
["Steinmeier, Dr. Frank-Walter, SPD"]
["Stetten, Christian Freiherr von, CDU/CSU"]
["Stier, Dieter, CDU/CSU"]
["Stockhofe, Rita, CDU/CSU"]
["Storjohann, Gero, CDU/CSU"]
["Stracke, Stephan, CDU/CSU"]
["Strässer, Christoph, SPD"]
["Straubinger, Max, CDU/CSU"]
["Strebl, Matthäus, CDU/CSU"]
["Strengmann-Kuhn, Dr. Wolfgang, Bündnis 90/Die Grünen"]
["Strenz, Karin, CDU/CSU"]
["Stritzl, Thomas, CDU/CSU"]
["Ströbele, Hans-Christian, Bündnis 90/Die Grünen"]
["Strobl (Heilbronn), Thomas, CDU/CSU"]
["Strothmann, Lena, CDU/CSU"]
["Stübgen, Michael, CDU/CSU"]
["Sütterlin-Waack, Dr. Sabine, CDU/CSU"]
["Tack, Kerstin, SPD"]
["Tackmann, Dr. Kirsten, Die Linke"]
["Tank, Azize, Die Linke"]
["Tauber, Dr. Peter, CDU/CSU"]
["Tausend, Claudia, SPD"]
["Tempel, Frank, Die Linke"]
["Terpe, Dr. Harald, Bündnis 90/Die Grünen"]
["Thews, Michael, SPD"]
["Thönnes, Franz, SPD"]
["Tiefensee, Wolfgang, SPD *"]
["Tillmann, Antje, CDU/CSU"]
["Timmermann-Fechter, Astrid, CDU/CSU"]
["Träger, Carsten, SPD"]
["Tressel, Markus, Bündnis 90/Die Grünen"]
["Trittin, Jürgen, Bündnis 90/Die Grünen"]
["Troost, Dr. Axel, Die Linke"]
["Uhl, Dr. Hans-Peter, CDU/CSU"]
["Ullrich, Dr. Volker, CDU/CSU"]
["Ulrich, Alexander, Die Linke"]
["Vaatz, Arnold, CDU/CSU"]
["Veit, Rüdiger, SPD"]
["Veith, Oswin, CDU/CSU"]
["Verlinden, Dr. Julia, Bündnis 90/Die Grünen"]
["Viesehon, Thomas, CDU/CSU"]
["Vietz, Michael, CDU/CSU"]
["Vogel (Kleinsaara), Volkmar, CDU/CSU"]
["Vogler, Kathrin, Die Linke"]
["Vogt, Ute, SPD"]
["Volmering, Sven, CDU/CSU"]
["Vöpel, Dirk, SPD"]
["Voßbeck-Kayser, Christel, CDU/CSU"]
["Vries, Kees de, CDU/CSU"]
["Wadephul, Dr. Johann, CDU/CSU"]
["Wagenknecht, Dr. Sahra, Die Linke"]
["Wagner, Doris, Bündnis 90/Die Grünen"]
["Walter-Rosenheimer, Beate, Bündnis 90/Die Grünen"]
["Wanderwitz, Marco, CDU/CSU"]
["Warken, Nina, CDU/CSU"]
["Wawzyniak, Halina, Die Linke"]
["Weber, Gabi, SPD"]
["Wegner, Kai, CDU/CSU"]
["Weiler, Albert, CDU/CSU"]
["Weinberg, Harald, Die Linke"]
["Weinberg (Hamburg), Marcus, CDU/CSU"]
["Weisgerber, Dr. Anja, CDU/CSU"]
["Weiß (Emmendingen), Peter, CDU/CSU"]
["Weiss (Wesel I), Sabine, CDU/CSU"]
["Wellenreuther, Ingo, CDU/CSU"]
["Wellmann, Karl-Georg, CDU/CSU"]
["Wendt, Marian, CDU/CSU"]
["Werner, Katrin, Die Linke"]
["Westermayer, Waldemar, CDU/CSU"]
["Westphal, Bernd, SPD"]
["Whittaker, Kai, CDU/CSU"]
["Wichtel, Peter, CDU/CSU"]
["Wicklein, Andrea, SPD"]
["Widmann-Mauz, Annette, CDU/CSU"]
["Wiese, Dirk, SPD"]
["Wiese (Ehingen), Heinz, CDU/CSU"]
["Willsch, Klaus-Peter, CDU/CSU"]
["Wilms, Dr. Valerie, Bündnis 90/Die Grünen"]
["Winkelmeier-Becker, Elisabeth, CDU/CSU"]
["Wittke, Oliver, CDU/CSU"]
["Wöhrl, Dagmar G., CDU/CSU"]
["Wolff (Wolmirstedt), Waltraud, SPD"]
["Wöllert, Birgit, Die Linke"]
["Woltmann, Barbara, CDU/CSU"]
["Wunderlich, Jörn, Die Linke"]
["Yüksel, Gülistan, SPD"]
["Zdebel, Hubertus, Die Linke"]
["Zech, Tobias, CDU/CSU"]
["Zertik, Heinrich, CDU/CSU"]
["Zeulner, Emmi, CDU/CSU"]
["Ziegler, Dagmar, SPD"]
["Zierke, Stefan, SPD"]
["Zimmer, Prof. Dr. Matthias, CDU/CSU"]
["Zimmermann, Dr. Jens, SPD"]
["Zimmermann, Pia, Die Linke"]
["Zimmermann (Zwickau), Sabine, Die Linke"]
["Zöllmer, Manfred, SPD"]
["Zollner, Gudrun, CDU/CSU"]
["Zypries, Brigitte, SPD"]

{"sheet":"Alle Parteien (Formel)","index":1,"n_rows":643,"n_cols":2,"rows_kept":643,"cut":false,"hidden":true,"merged":[]}
["Alphabetische Liste aller Mitglieder \ndes 18. Deutschen Bundestages, Stand 04.05.2015","Partei\n(per Formel)"]
["Aken, Jan van, Die Linke",{"$f":"IF(RIGHT(A2,3)=\"CSU\",\"CDU/CSU\",IF(RIGHT(A2,3)=\"SPD\",\"SPD\",IF(RIGHT(A2,3)=\"nen\",\"Bündnis 90/Die Grünen\",IF(RIGHT(A2,3)=\"nke\",\"Die Linke\",\"Fehler\"))))","v":"Die Linke"}]
["Albani, Stephan, CDU/CSU","CDU/CSU"]
["Albsteiger, Katrin, CDU/CSU","CDU/CSU"]
["Alpers, Agnes, Die Linke *","Fehler"]
["Altmaier, Peter, CDU/CSU","CDU/CSU"]
["Amtsberg, Luise, Bündnis 90/Die Grünen",{"$f":"IF(RIGHT(A7,3)=\"CSU\",\"CDU/CSU\",IF(RIGHT(A7,3)=\"SPD\",\"SPD\",IF(RIGHT(A7,3)=\"nen\",\"Bündnis 90/Die Grünen\",IF(RIGHT(A7,3)=\"nke\",\"Die Linke\",\"Fehler\"))))","v":"Bündnis 90/Die Grünen"}]
["Andreae, Kerstin, Bündnis 90/Die Grünen",{"$f":"IF(RIGHT(A8,3)=\"CSU\",\"CDU/CSU\",IF(RIGHT(A8,3)=\"SPD\",\"SPD\",IF(RIGHT(A8,3)=\"nen\",\"Bündnis 90/Die Grünen\",IF(RIGHT(A8,3)=\"nke\",\"Die Linke\",\"Fehler\"))))","v":"Bündnis 90/Die Grünen"}]
["Annen, Niels, SPD","SPD"]
["Arndt-Brauer, Ingrid, SPD","SPD"]
["Arnold, Rainer, SPD","SPD"]
["Auernhammer, Artur, CDU/CSU","CDU/CSU"]
["Baehrens, Heike, SPD","SPD"]
["Baerbock, Annalena, Bündnis 90/Die Grünen","Bündnis 90/Die Grünen"]
["Bahr, Ulrike, SPD","SPD"]
["Bär, Dorothee, CDU/CSU","CDU/CSU"]
["Barchmann, Heinz-Joachim, SPD","SPD"]
["Bareiß, Thomas, CDU/CSU","CDU/CSU"]
["Barley, Dr. Katarina, SPD","SPD"]
["Barnett, Doris, SPD","SPD"]
["Bartels, Dr. Hans-Peter, SPD","SPD"]
["Barthel, Klaus, SPD","SPD"]
["Barthle, Norbert, CDU/CSU","CDU/CSU"]
["Bartke, Dr. Matthias, SPD","SPD"]
["Bartol, Sören, SPD","SPD"]
["Bartsch, Dr. Dietmar, Die Linke","Die Linke"]
["Bas, Bärbel, SPD","SPD"]
["Bätzing-Lichtenthäler, Sabine, SPD *","Fehler"]
["Baumann, Günter, CDU/CSU","CDU/CSU"]
["Beck (Bremen), Marieluise, Bündnis 90/Die Grünen","Bündnis 90/Die Grünen"]
["Beck (Köln), Volker, Bündnis 90/Die Grünen","Bündnis 90/Die Grünen"]
["Becker, Dirk, SPD","SPD"]
["Beckmeyer, Uwe, SPD","SPD"]
["Beermann, Maik, CDU/CSU","CDU/CSU"]
["Behrens, Herbert, Die Linke","Die Linke"]
["Behrens (Börde), Manfred, CDU/CSU","CDU/CSU"]
["Bellmann, Veronika, CDU/CSU","CDU/CSU"]
["Benning, Sybille, CDU/CSU","CDU/CSU"]
["Berghegger, Dr. André, CDU/CSU","CDU/CSU"]
["Bergner, Dr. Christoph, CDU/CSU","CDU/CSU"]
["Bertram, Ute, CDU/CSU","CDU/CSU"]
["Beyer, Peter, CDU/CSU","CDU/CSU"]
["Bilger, Steffen, CDU/CSU","CDU/CSU"]
["Binder, Karin, Die Linke","Die Linke"]
["Binding (Heidelberg), Lothar, SPD","SPD"]
["Binninger, Clemens, CDU/CSU","CDU/CSU"]
["Birkwald, Matthias W., Die Linke","Die Linke"]
["Bleser, Peter, CDU/CSU","CDU/CSU"]
["Blienert, Burkhard, SPD","SPD"]
["Bluhm, Heidrun, Die Linke","Die Linke"]
["Böhmer, Prof. Dr. Maria, CDU/CSU","CDU/CSU"]
["Bosbach, Wolfgang, CDU/CSU","CDU/CSU"]
["Brackmann, Norbert, CDU/CSU","CDU/CSU"]
["Brähmig, Klaus, CDU/CSU","CDU/CSU"]
["Brand, Michael, CDU/CSU","CDU/CSU"]
["Brandl, Dr. Reinhard, CDU/CSU","CDU/CSU"]
["Brandt, Helmut, CDU/CSU","CDU/CSU"]
["Brantner, Dr. Franziska, Bündnis 90/Die Grünen","Bündnis 90/Die Grünen"]
["Brase, Willi, SPD","SPD"]
["Brauksiepe, Dr. Ralf, CDU/CSU","CDU/CSU"]
["Braun, Dr. Helge, CDU/CSU","CDU/CSU"]
["Brehmer, Heike, CDU/CSU","CDU/CSU"]
["Brinkhaus, Ralph, CDU/CSU","CDU/CSU"]
["Brugger, Agnieszka, Bündnis 90/Die Grünen","Bündnis 90/Die Grünen"]
["Brunner, Dr. Karl-Heinz, SPD","SPD"]
["Buchholz, Christine, Die Linke","Die Linke"]
["Bulling-Schröter, Eva, Die Linke","Die Linke"]
["Bulmahn, Edelgard, SPD","SPD"]
["Bülow, Marco, SPD","SPD"]
["Burkert, Martin, SPD","SPD"]
["Caesar, Cajus, CDU/CSU","CDU/CSU"]
["Castellucci, Prof. Dr. Lars, SPD",{"$f":"IF(RIGHT(A72,3)=\"CSU\",\"CDU/CSU\",IF(RIGHT(A72,3)=\"SPD\",\"SPD\",IF(RIGHT(A72,3)=\"nen\",\"Bündnis 90/Die Grünen\",IF(RIGHT(A72,3)=\"nke\",\"Die Linke\",\"Fehler\"))))","v":"SPD"}]
["Claus, Roland, Die Linke","Die Linke"]
["Connemann, Gitta, CDU/CSU","CDU/CSU"]
["Crone, Petra, SPD","SPD"]
["Daldrup, Bernhard, SPD","SPD"]
["Dagdelen, Sevim, Die Linke","Die Linke"]
["De Ridder, Dr. rer. pol. Daniela, SPD","SPD"]
["Dehm, Dr. Diether, Die Linke","Die Linke"]
["Deligöz, Ekin, Bündnis 90/Die Grünen","Bündnis 90/Die Grünen"]
["Diaby, Dr. rer. nat. Karamba, SPD","SPD"]
["Dinges-Dierig, Alexandra, CDU/CSU","CDU/CSU"]
["Dittmar, Sabine, SPD","SPD"]
["Dobrindt, Alexander, CDU/CSU","CDU/CSU"]
["Donth, Michael, CDU/CSU","CDU/CSU"]
["Dörflinger, Thomas, CDU/CSU","CDU/CSU"]
["Dörmann, Martin, SPD","SPD"]
["Dörner, Katja, Bündnis 90/Die Grünen","Bündnis 90/Die Grünen"]
["Dött, Marie-Luise, CDU/CSU","CDU/CSU"]
["Drobinski-Weiß, Elvira, SPD","SPD"]
["Dröge, Katharina, Bündnis 90/Die Grünen","Bündnis 90/Die Grünen"]
["Durz, Hansjörg, CDU/CSU","CDU/CSU"]
["Eberl, Iris, CDU/CSU","CDU/CSU"]
["Ebner, Harald, Bündnis 90/Die Grünen","Bündnis 90/Die Grünen"]
["Eckenbach, Jutta, CDU/CSU","CDU/CSU"]
["Edathy, Sebastian, SPD *","Fehler"]
["Ehrmann, Siegmund, SPD","SPD"]
["Engelmeier, Michaela, SPD","SPD"]
["Erler, Dr. h.c. Gernot, SPD","SPD"]
["Ernst, Klaus, Die Linke","Die Linke"]
["Ernstberger, Petra, SPD","SPD"]
["Esken, Saskia, SPD","SPD"]
["Evers-Meyer, Karin, SPD","SPD"]
["Fabritius, Dr. Bernd, CDU/CSU","CDU/CSU"]
["Färber, Hermann, CDU/CSU","CDU/CSU"]
["Fechner, Dr. Johannes, SPD","SPD"]
["Feiler, Uwe, CDU/CSU","CDU/CSU"]
["Feist, Dr. Thomas, CDU/CSU","CDU/CSU"]
["Felgentreu, Dr. Fritz, SPD","SPD"]
["Ferlemann, Enak, CDU/CSU","CDU/CSU"]
["Ferner, Elke, SPD","SPD"]
["Finckh-Krämer, Dr. rer. nat. Ute, SPD","SPD"]
["Fischbach, Ingrid, CDU/CSU","CDU/CSU"]
["Fischer (Karlsruhe-Land), Axel E., CDU/CSU","CDU/CSU"]
["Fischer (Hamburg), Dirk, CDU/CSU","CDU/CSU"]
["Flachsbarth, Dr. Maria, CDU/CSU","CDU/CSU"]
["Flisek, Christian, SPD","SPD"]
["Flosbach, Klaus-Peter, CDU/CSU","CDU/CSU"]
["Fograscher, Gabriele, SPD","SPD"]
["Franke, Dr. Edgar, SPD","SPD"]
["Freese, Ulrich, SPD","SPD"]
["Frei, Thorsten, CDU/CSU","CDU/CSU"]
["Freitag, Dagmar, SPD","SPD"]
["Freudenstein, Dr. Astrid, CDU/CSU","CDU/CSU"]
["Friedrich (Hof), Dr. Hans-Peter, CDU/CSU","CDU/CSU"]
["Frieser, Michael, CDU/CSU","CDU/CSU"]
["Fuchs, Dr. Michael, CDU/CSU","CDU/CSU"]
["Fuchtel, Hans-Joachim, CDU/CSU","CDU/CSU"]
["Funk, Alexander, CDU/CSU","CDU/CSU"]
["Gabriel, Sigmar, SPD","SPD"]
["Gädechens, Ingo, CDU/CSU","CDU/CSU"]
["Gambke, Dr. Thomas, Bündnis 90/Die Grünen","Bündnis 90/Die Grünen"]
["Gastel, Matthias, Bündnis 90/Die Grünen","Bündnis 90/Die Grünen"]
["Gauweiler, Dr. Peter, CDU/CSU *","Fehler"]
["Gebhart, Dr. Thomas, CDU/CSU","CDU/CSU"]
["Gehrcke, Wolfgang, Die Linke",{"$f":"IF(RIGHT(A136,3)=\"CSU\",\"CDU/CSU\",IF(RIGHT(A136,3)=\"SPD\",\"SPD\",IF(RIGHT(A136,3)=\"nen\",\"Bündnis 90/Die Grünen\",IF(RIGHT(A136,3)=\"nke\",\"Die Linke\",\"Fehler\"))))","v":"Die Linke"}]
["Gehring, Kai, Bündnis 90/Die Grünen","Bündnis 90/Die Grünen"]
["Gerdes, Michael, SPD","SPD"]
["Gerig, Alois, CDU/CSU","CDU/CSU"]
["Gerster, Martin, SPD","SPD"]
["Gienger, Eberhard, CDU/CSU","CDU/CSU"]
["Giousouf, Cemile, CDU/CSU","CDU/CSU"]
["Gleicke, Iris, SPD","SPD"]
["Glöckner, Angelika, SPD","SPD"]
["Gohlke, Nicole, Die Linke","Die Linke"]
["Golze, Diana, Die Linke *","Fehler"]
["Göppel, Josef, CDU/CSU","CDU/CSU"]
["Göring-Eckardt, Katrin, Bündnis 90/Die Grünen","Bündnis 90/Die Grünen"]
["Gottschalck, Ulrike, SPD","SPD"]
["Griese, Kerstin, SPD","SPD"]
["Grindel, Reinhard, CDU/CSU","CDU/CSU"]
["Groden-Kranich, Ursula, CDU/CSU","CDU/CSU"]
["Gröhe, Hermann, CDU/CSU","CDU/CSU"]
["Gröhler, Klaus-Dieter, CDU/CSU","CDU/CSU"]
["Groneberg, Gabriele, SPD","SPD"]
["Groß, Michael, SPD","SPD"]
["Grosse-Brömer, Michael, CDU/CSU","CDU/CSU"]
["Grotelüschen, Astrid, CDU/CSU","CDU/CSU"]
["Groth, Annette, Die Linke","Die Linke"]
["Grötsch, Uli, SPD","SPD"]
["Grübel, Markus, CDU/CSU","CDU/CSU"]
["Grund, Manfred, CDU/CSU","CDU/CSU"]
["Grundmann, Oliver, CDU/CSU","CDU/CSU"]
["Grütters, Monika, CDU/CSU","CDU/CSU"]
["Gundelach, Dr. Herlind, CDU/CSU","CDU/CSU"]
["Gunkel, Wolfgang, SPD","SPD"]
["Güntzler, Fritz, CDU/CSU","CDU/CSU"]
["Gutting, Olav, CDU/CSU","CDU/CSU"]
["Gysi, Dr. Gregor, Die Linke","Die Linke"]
["Haase, Christian, CDU/CSU","CDU/CSU"]
["Hagedorn, Bettina, SPD","SPD"]
["Hagl-Kehl, Rita, SPD","SPD"]
["Hahn, Dr. André, Die Linke","Die Linke"]
["Hahn, Florian, CDU/CSU","CDU/CSU"]
["Hajduk, Anja, Bündnis 90/Die Grünen","Bündnis 90/Die Grünen"]
["Hakverdi, Metin, SPD","SPD"]
["Hampel, Ulrich, SPD","SPD"]
["Hänsel, Heike, Die Linke","Die Linke"]
["Harbarth, Dr. Stephan, CDU/CSU","CDU/CSU"]
["Hardt, Jürgen, CDU/CSU","CDU/CSU"]
["Hartmann (Wackernheim), Michael, SPD","SPD"]
["Hartmann, Sebastian, SPD","SPD"]
["Hasselfeldt, Gerda, CDU/CSU","CDU/CSU"]
["Haßelmann, Britta, Bündnis 90/Die Grünen","Bündnis 90/Die Grünen"]
["Hauer, Matthias, CDU/CSU","CDU/CSU"]
["Hauptmann, Mark, CDU/CSU","CDU/CSU"]
["Heck, Dr. Stefan, CDU/CSU","CDU/CSU"]
["Heidenblut, Dirk, SPD","SPD"]
["Heider, Dr. Matthias, CDU/CSU","CDU/CSU"]
["Heiderich, Helmut, CDU/CSU","CDU/CSU"]
["Heil (Peine), Hubertus, SPD","SPD"]
["Heil, Mechthild, CDU/CSU","CDU/CSU"]
["Hein, Dr. Rosemarie, Die Linke","Die Linke"]
["Heinrich (Chemnitz), Frank, CDU/CSU","CDU/CSU"]
["Heinrich, Gabriela, SPD","SPD"]
["Held, Marcus, SPD","SPD"]
["Helfrich, Mark, CDU/CSU","CDU/CSU"]
["Heller, Uda, CDU/CSU","CDU/CSU"]
["Hellmich, Wolfgang, SPD","SPD"]
["Hellmuth, Jörg, CDU/CSU",{"$f":"IF(RIGHT(A200,3)=\"CSU\",\"CDU/CSU\",IF(RIGHT(A200,3)=\"SPD\",\"SPD\",IF(RIGHT(A200,3)=\"nen\",\"Bündnis 90/Die Grünen\",IF(RIGHT(A200,3)=\"nke\",\"Die Linke\",\"Fehler\"))))","v":"CDU/CSU"}]
["Hendricks, Dr. Barbara, SPD","SPD"]
["Henke, Rudolf, CDU/CSU","CDU/CSU"]
["Henn, Heidtrud, SPD","SPD"]
["Hennrich, Michael, CDU/CSU","CDU/CSU"]
["Herzog, Gustav, SPD","SPD"]
["Heveling, Ansgar, CDU/CSU","CDU/CSU"]
["Hiller-Ohm, Gabriele, SPD","SPD"]
["Hintze, Peter, CDU/CSU","CDU/CSU"]
["Hinz (Essen), Petra, SPD","SPD"]
["Hinz (Herborn), Priska, Bündnis 90/Die Grünen *","Fehler"]
["Hirte, Christian, CDU/CSU","CDU/CSU"]
["Hirte, Prof. Dr. iur. Heribert, CDU/CSU","CDU/CSU"]
["Hitschler, Thomas, SPD","SPD"]
["Hochbaum, Robert, CDU/CSU","CDU/CSU"]
["Hoffmann, Alexander, CDU/CSU","CDU/CSU"]
["Hoffmann (Dortmund), Thorsten, CDU/CSU","CDU/CSU"]
["Hofreiter, Dr. Anton, Bündnis 90/Die Grünen","Bündnis 90/Die Grünen"]
["Höger, Inge, Die Linke","Die Linke"]
["Högl, Dr. Eva, SPD","SPD"]
["Höhn, Bärbel, Bündnis 90/Die Grünen","Bündnis 90/Die Grünen"]
["Holmeier, Karl, CDU/CSU","CDU/CSU"]
["Holzenkamp, Franz-Josef, CDU/CSU","CDU/CSU"]
["Hoppenstedt, Dr. Hendrik, CDU/CSU","CDU/CSU"]
["Horb, Margaret, CDU/CSU","CDU/CSU"]
["Hornhues, Bettina, CDU/CSU","CDU/CSU"]
["Huber, Karl-Heinz (Charles M.), CDU/CSU","CDU/CSU"]
["Hübinger, Anette, CDU/CSU","CDU/CSU"]
["Hunko, Andrej, Die Linke","Die Linke"]
["Hupach, Sigrid, Die Linke","Die Linke"]
["Hüppe, Hubert, CDU/CSU","CDU/CSU"]
["Ilgen, Matthias, SPD","SPD"]
["Irlstorfer, Erich, CDU/CSU","CDU/CSU"]
["Janecek, Dieter, Bündnis 90/Die Grünen","Bündnis 90/Die Grünen"]
["Jantz, Christina, SPD","SPD"]
["Jarzombek, Thomas, CDU/CSU","CDU/CSU"]
["Jelpke, Ulla, Die Linke","Die Linke"]
["Jörrißen, Sylvia, CDU/CSU","CDU/CSU"]
["Jost, Reinhold, SPD *","Fehler"]
["Jung, Andreas, CDU/CSU","CDU/CSU"]
["Jung, Dr. Franz Josef, CDU/CSU","CDU/CSU"]
["Jung, Xaver, CDU/CSU","CDU/CSU"]
["Junge, Frank, SPD","SPD"]
["Juratovic, Josip, SPD","SPD"]
["Jurk, Thomas, SPD","SPD"]
["Jüttner, Dr. Egon, CDU/CSU","CDU/CSU"]
["Kaczmarek, Oliver, SPD","SPD"]
["Kahrs, Johannes, SPD","SPD"]
["Kalb, Bartholomäus, CDU/CSU","CDU/CSU"]
["Kammer, Hans-Werner, CDU/CSU","CDU/CSU"]
["Kampeter, Steffen, CDU/CSU","CDU/CSU"]
["Kampmann, Christina, SPD","SPD"]
["Kanitz, Steffen, CDU/CSU","CDU/CSU"]
["Kapschack, Ralf, SPD","SPD"]
["Karawanskij, Susanna, Die Linke","Die Linke"]
["Karl, Alois, CDU/CSU","CDU/CSU"]
["Karliczek, Anja, CDU/CSU","CDU/CSU"]
["Kassner, Kerstin, Die Linke","Die Linke"]
["Kaster, Bernhard, CDU/CSU","CDU/CSU"]
["Katzmarek, Gabriele, SPD","SPD"]
["Kauder, Volker, CDU/CSU","CDU/CSU"]
["Kaufmann, Dr. Stefan, CDU/CSU","CDU/CSU"]
["Kekeritz, Uwe, Bündnis 90/Die Grünen","Bündnis 90/Die Grünen"]
["Kelber, Ulrich, SPD","SPD"]
["Kermer, Marina, SPD",{"$f":"IF(RIGHT(A264,3)=\"CSU\",\"CDU/CSU\",IF(RIGHT(A264,3)=\"SPD\",\"SPD\",IF(RIGHT(A264,3)=\"nen\",\"Bündnis 90/Die Grünen\",IF(RIGHT(A264,3)=\"nke\",\"Die Linke\",\"Fehler\"))))","v":"SPD"}]
["Keul, Katja, Bündnis 90/Die Grünen","Bündnis 90/Die Grünen"]
["Kiesewetter, Roderich, CDU/CSU","CDU/CSU"]
["Kindler, Sven-Christian, Bündnis 90/Die Grünen","Bündnis 90/Die Grünen"]
["Kippels, Dr. Georg, CDU/CSU","CDU/CSU"]
["Kipping, Katja, Die Linke","Die Linke"]
["Kiziltepe, Cansel, SPD","SPD"]
["Klare, Arno, SPD","SPD"]
["Klein, Volkmar, CDU/CSU","CDU/CSU"]
["Klein-Schmeink, Maria, Bündnis 90/Die Grünen","Bündnis 90/Die Grünen"]
["Klimke, Jürgen, CDU/CSU","CDU/CSU"]
["Klingbeil, Lars, SPD","SPD"]
["Knoerig, Axel, CDU/CSU","CDU/CSU"]
["Koenigs, Tom, Bündnis 90/Die Grünen","Bündnis 90/Die Grünen"]
["Koeppen, Jens, CDU/CSU","CDU/CSU"]
["Kofler, Dr. Bärbel, SPD","SPD"]
["Kolbe, Daniela, SPD","SPD"]
["Kömpel, Birgit, SPD","SPD"]
["Koob, Markus, CDU/CSU","CDU/CSU"]
["Körber, Carsten, CDU/CSU","CDU/CSU"]
["Korte, Jan, Die Linke","Die Linke"]
["Koschyk, Hartmut, CDU/CSU","CDU/CSU"]
["Kotting-Uhl, Sylvia, Bündnis 90/Die Grünen","Bündnis 90/Die Grünen"]
["Kovac, Kordula, CDU/CSU","CDU/CSU"]
["Kramme, Anette, SPD","SPD"]
["Krellmann, Jutta, Die Linke","Die Linke"]
["Kretschmer, Michael, CDU/CSU","CDU/CSU"]
["Krichbaum, Gunther, CDU/CSU","CDU/CSU"]
["Krings, Dr. Günter, CDU/CSU","CDU/CSU"]
["Krischer, Oliver, Bündnis 90/Die Grünen","Bündnis 90/Die Grünen"]
["Krüger, Dr. Hans-Ulrich, SPD","SPD"]
["Kruse, Rüdiger, CDU/CSU","CDU/CSU"]
["Kudla, Bettina, CDU/CSU","CDU/CSU"]
["Kühn (Tübingen), Christian, Bündnis 90/Die Grünen","Bündnis 90/Die Grünen"]
["Kühn (Dresden), Stephan, Bündnis 90/Die Grünen","Bündnis 90/Die Grünen"]
["Kühn-Mengel, Helga, SPD","SPD"]
["Kühne, Dr. Roy, CDU/CSU","CDU/CSU"]
["Künast, Renate, Bündnis 90/Die Grünen","Bündnis 90/Die Grünen"]
["Kunert, Katrin, Die Linke","Die Linke"]
["Kurth, Markus, Bündnis 90/Die Grünen","Bündnis 90/Die Grünen"]
["Lach, Günter, CDU/CSU","CDU/CSU"]
["Lagosky, Uwe, CDU/CSU","CDU/CSU"]
["Lambrecht, Christine, SPD","SPD"]
["Lamers, Dr. Dr. h.c. Karl A., CDU/CSU","CDU/CSU"]
["Lämmel, Andreas G., CDU/CSU","CDU/CSU"]
["Lammert, Prof. Dr. Norbert, CDU/CSU","CDU/CSU"]
["Landgraf, Katharina, CDU/CSU","CDU/CSU"]
["Lange (Backnang), Christian, SPD","SPD"]
["Lange, Ulrich, CDU/CSU","CDU/CSU"]
["Lanzinger, Barbara, CDU/CSU","CDU/CSU"]
["Launert, Dr. Silke, CDU/CSU","CDU/CSU"]
["Lauterbach, Dr. Karl, SPD","SPD"]
["Lay, Caren, Die Linke","Die Linke"]
["Lazar, Monika, Bündnis 90/Die Grünen","Bündnis 90/Die Grünen"]
["Lehrieder, Paul, CDU/CSU","CDU/CSU"]
["Leidig, Sabine, Die Linke","Die Linke"]
["Leikert, Dr. Katja, CDU/CSU","CDU/CSU"]
["Lemke, Steffi, Bündnis 90/Die Grünen","Bündnis 90/Die Grünen"]
["Lemme, Steffen-Claudio, SPD","SPD"]
["Lengsfeld, Dr. Philipp, CDU/CSU","CDU/CSU"]
["Lenkert, Ralph, Die Linke","Die Linke"]
["Lenz, Dr. Andreas, CDU/CSU","CDU/CSU"]
["Lerchenfeld, Philipp Graf, CDU/CSU","CDU/CSU"]
["Leutert, Michael, Die Linke","Die Linke"]
["Leyen, Dr. Ursula von der, CDU/CSU",{"$f":"IF(RIGHT(A328,3)=\"CSU\",\"CDU/CSU\",IF(RIGHT(A328,3)=\"SPD\",\"SPD\",IF(RIGHT(A328,3)=\"nen\",\"Bündnis 90/Die Grünen\",IF(RIGHT(A328,3)=\"nke\",\"Die Linke\",\"Fehler\"))))","v":"CDU/CSU"}]
["Lezius, Antje, CDU/CSU","CDU/CSU"]
["Liebich, Stefan, Die Linke","Die Linke"]
["Liebing, Ingbert, CDU/CSU","CDU/CSU"]
["Lietz, Matthias, CDU/CSU","CDU/CSU"]
["Lindholz, Andrea, CDU/CSU","CDU/CSU"]
["Lindner, Dr. Tobias, Bündnis 90/Die Grünen","Bündnis 90/Die Grünen"]
["Linnemann, Dr. Carsten, CDU/CSU","CDU/CSU"]
["Lips, Patricia, CDU/CSU","CDU/CSU"]
["Lischka, Burkhard, SPD","SPD"]
["Lorenz, Wilfried, CDU/CSU","CDU/CSU"]
["Lösekrug-Möller, Gabriele, SPD","SPD"]
["Lotze, Hiltrud, SPD","SPD"]
["Lötzsch, Dr. Gesine, Die Linke","Die Linke"]
["Lücking-Michel, Dr. Claudia, CDU/CSU","CDU/CSU"]
["Luczak, Dr. Jan-Marco, CDU/CSU","CDU/CSU"]
["Ludwig, Daniela, CDU/CSU","CDU/CSU"]
["Lühmann, Kirsten, SPD","SPD"]
["Lutze, Thomas, Die Linke","Die Linke"]
["Maag, Karin, CDU/CSU","CDU/CSU"]
["Magwas, Yvonne, CDU/CSU","CDU/CSU"]
["Mahlberg, Thomas, CDU/CSU","CDU/CSU"]
["Maisch, Nicole, Bündnis 90/Die Grünen","Bündnis 90/Die Grünen"]
["Maizière, Dr. Thomas de, CDU/CSU","CDU/CSU"]
["Malecha-Nissen, Dr. Birgit, SPD","SPD"]
["Manderla, Gisela, CDU/CSU","CDU/CSU"]
["Marks, Caren, SPD","SPD"]
["Marschall, Matern von, CDU/CSU","CDU/CSU"]
["Marwitz, Hans-Georg von der, CDU/CSU","CDU/CSU"]
["Mast, Katja, SPD","SPD"]
["Mattfeldt, Andreas, CDU/CSU","CDU/CSU"]
["Mattheis, Hilde, SPD","SPD"]
["Mayer (Altötting), Stephan, CDU/CSU","CDU/CSU"]
["Meier, Reiner, CDU/CSU","CDU/CSU"]
["Meister, Dr. Michael, CDU/CSU","CDU/CSU"]
["Meiwald, Peter, Bündnis 90/Die Grünen","Bündnis 90/Die Grünen"]
["Menz, Birgit, Die Linke","Die Linke"]
["Merkel, Dr. Angela, CDU/CSU","CDU/CSU"]
["Metzler, Jan, CDU/CSU","CDU/CSU"]
["Michalk, Maria, CDU/CSU","CDU/CSU"]
["Michelbach, Dr. h. c. Hans, CDU/CSU","CDU/CSU"]
["Middelberg, Dr. Mathias, CDU/CSU","CDU/CSU"]
["Miersch, Dr. Matthias, SPD","SPD"]
["Mihalic, Irene, Bündnis 90/Die Grünen","Bündnis 90/Die Grünen"]
["Mindrup, Klaus, SPD","SPD"]
["Mißfelder, Philipp, CDU/CSU","CDU/CSU"]
["Mittag, Susanne, SPD","SPD"]
["Möhring, Cornelia, Die Linke","Die Linke"]
["Monstadt, Dietrich, CDU/CSU","CDU/CSU"]
["Möring, Karsten, CDU/CSU","CDU/CSU"]
["Mortler, Marlene, CDU/CSU","CDU/CSU"]
["Motschmann, Elisabeth, CDU/CSU","CDU/CSU"]
["Movassat, Niema, Die Linke","Die Linke"]
["Müller, Bettina, SPD","SPD"]
["Müller (Braunschweig), Carsten, CDU/CSU","CDU/CSU"]
["Müller (Chemnitz), Detlef, SPD","SPD"]
["Müller, Dr. Gerd, CDU/CSU","CDU/CSU"]
["Müller (Potsdam), Norbert, Die Linke","Die Linke"]
["Müller (Erlangen), Stefan, CDU/CSU","CDU/CSU"]
["Müller-Gemmeke, Beate, Bündnis 90/Die Grünen","Bündnis 90/Die Grünen"]
["Müntefering, Michelle, SPD","SPD"]
["Murmann, Dr. Philipp, CDU/CSU","CDU/CSU"]
["Mutlu, Özcan, Bündnis 90/Die Grünen","Bündnis 90/Die Grünen"]
["Mützenich, Dr. Rolf, SPD","SPD"]
["Nahles, Andrea, SPD",{"$f":"IF(RIGHT(A392,3)=\"CSU\",\"CDU/CSU\",IF(RIGHT(A392,3)=\"SPD\",\"SPD\",IF(RIGHT(A392,3)=\"nen\",\"Bündnis 90/Die Grünen\",IF(RIGHT(A392,3)=\"nke\",\"Die Linke\",\"Fehler\"))))","v":"SPD"}]
["Neu, Dr. Alexander S., Die Linke","Die Linke"]
["Nick, Dr. Andreas, CDU/CSU","CDU/CSU"]
["Nietan, Dietmar, SPD","SPD"]
["Nissen, Ulli, SPD","SPD"]
["Noll, Michaela, CDU/CSU","CDU/CSU"]
["Nord, Thomas, Die Linke","Die Linke"]
["Notz, Dr. Konstantin von, Bündnis 90/Die Grünen","Bündnis 90/Die Grünen"]
["Nouripour, Omid, Bündnis 90/Die Grünen","Bündnis 90/Die Grünen"]
["Nowak, Helmut, CDU/CSU","CDU/CSU"]
["Nüßlein, Dr. iur. Georg, CDU/CSU","CDU/CSU"]
["Obermeier, Julia, CDU/CSU","CDU/CSU"]
["Oellers, Wilfried, CDU/CSU","CDU/CSU"]
["Oppermann, Thomas, SPD","SPD"]
["Oßner, Florian, CDU/CSU","CDU/CSU"]
["Ostendorff, Friedrich, Bündnis 90/Die Grünen","Bündnis 90/Die Grünen"]
["Ostermann, Dr. Tim, CDU/CSU","CDU/CSU"]
["Otte, Henning, CDU/CSU","CDU/CSU"]
["Özdemir, Cem, Bündnis 90/Die Grünen","Bündnis 90/Die Grünen"]
["Özdemir (Duisburg), Mahmut, SPD","SPD"]
["Özoguz, Aydan, SPD","SPD"]
["Pahlmann, Ingrid, CDU/CSU","CDU/CSU"]
["Pantel, Sylvia, CDU/CSU","CDU/CSU"]
["Paschke, Markus, SPD","SPD"]
["Patzelt, Martin, CDU/CSU","CDU/CSU"]
["Pätzold, Dr. Martin, CDU/CSU","CDU/CSU"]
["Pau, Petra, Die Linke","Die Linke"]
["Paus, Lisa, Bündnis 90/Die Grünen","Bündnis 90/Die Grünen"]
["Petry, Christian, SPD","SPD"]
["Petzold (Havelland), Harald, Die Linke","Die Linke"]
["Petzold, Ulrich, CDU/CSU","CDU/CSU"]
["Pfeiffer, Dr. Joachim, CDU/CSU","CDU/CSU"]
["Pfeiffer, Sibylle, CDU/CSU","CDU/CSU"]
["Pflugradt, Jeannine, SPD","SPD"]
["Pilger, Detlev, SPD","SPD"]
["Pitterle, Richard, Die Linke","Die Linke"]
["Pofalla, Ronald, CDU/CSU *","Fehler"]
["Pols, Eckhard, CDU/CSU","CDU/CSU"]
["Poschmann, Sabine, SPD","SPD"]
["Poß, Joachim, SPD","SPD"]
["Post (Minden), Achim, SPD","SPD"]
["Post, Florian, SPD","SPD"]
["Pothmer, Brigitte, Bündnis 90/Die Grünen","Bündnis 90/Die Grünen"]
["Priesmeier, Dr. Wilhelm, SPD","SPD"]
["Pronold, Florian, SPD","SPD"]
["Raabe, Dr. Sascha, SPD","SPD"]
["Raatz, Dr. Simone, SPD","SPD"]
["Rabanus, Martin, SPD","SPD"]
["Rachel, Thomas, CDU/CSU","CDU/CSU"]
["Radomski, Kerstin, CDU/CSU","CDU/CSU"]
["Radwan, Alexander, CDU/CSU","CDU/CSU"]
["Rainer, Alois, CDU/CSU","CDU/CSU"]
["Ramsauer, Dr. Peter, CDU/CSU","CDU/CSU"]
["Rawert, Mechthild, SPD","SPD"]
["Rebmann, Stefan, SPD","SPD"]
["Rehberg, Eckhardt, CDU/CSU","CDU/CSU"]
["Reiche (Potsdam), Katherina, CDU/CSU","CDU/CSU"]
["Reichenbach, Gerold, SPD","SPD"]
["Reimann, Dr. Carola, SPD","SPD"]
["Renner, Martina, Die Linke","Die Linke"]
["Riebsamen, Lothar, CDU/CSU","CDU/CSU"]
["Rief, Josef, CDU/CSU","CDU/CSU"]
["Riesenhuber, Prof. Dr. Heinz, CDU/CSU","CDU/CSU"]
["Rimkus, Andreas, SPD","SPD"]
["Rix, Sönke, SPD",{"$f":"IF(RIGHT(A456,3)=\"CSU\",\"CDU/CSU\",IF(RIGHT(A456,3)=\"SPD\",\"SPD\",IF(RIGHT(A456,3)=\"nen\",\"Bündnis 90/Die Grünen\",IF(RIGHT(A456,3)=\"nke\",\"Die Linke\",\"Fehler\"))))","v":"SPD"}]
["Rohde, Dennis, SPD","SPD"]
["Röring, Johannes, CDU/CSU","CDU/CSU"]
["Rosemann, Dr. Martin, SPD","SPD"]
["Röspel, René, SPD","SPD"]
["Rossmann, Dr. Ernst Dieter, SPD","SPD"]
["Rößner, Tabea, Bündnis 90/Die Grünen","Bündnis 90/Die Grünen"]
["Roth (Augsburg), Claudia, Bündnis 90/Die Grünen","Bündnis 90/Die Grünen"]
["Roth (Heringen), Michael, SPD","SPD"]
["Röttgen, Dr. Norbert, CDU/CSU","CDU/CSU"]
["Rüddel, Erwin, CDU/CSU","CDU/CSU"]
["Rüffer, Corinna, Bündnis 90/Die Grünen","Bündnis 90/Die Grünen"]
["Rupprecht, Albert, CDU/CSU","CDU/CSU"]
["Rüthrich, Susann, SPD","SPD"]
["Rützel, Bernd, SPD","SPD"]
["Saathoff, Johann, SPD","SPD"]
["Sarrazin, Manuel, Bündnis 90/Die Grünen","Bündnis 90/Die Grünen"]
["Sawade, Annette, SPD","SPD"]
["Schabedoth, Dr. Hans-Joachim, SPD","SPD"]
["Schäfer (Saalstadt), Anita, CDU/CSU","CDU/CSU"]
["Schäfer (Bochum), Axel, SPD","SPD"]
["Scharfenberg, Elisabeth, Bündnis 90/Die Grünen","Bündnis 90/Die Grünen"]
["Schäuble, Dr. Wolfgang, CDU/CSU","CDU/CSU"]
["Schauws, Ulle, Bündnis 90/Die Grünen","Bündnis 90/Die Grünen"]
["Schavan, Annette, CDU/CSU *","Fehler"]
["Scheer, Dr. Nina, SPD","SPD"]
["Scheuer, Andreas, CDU/CSU","CDU/CSU"]
["Schick, Dr. Gerhard, Bündnis 90/Die Grünen","Bündnis 90/Die Grünen"]
["Schieder, Marianne, SPD","SPD"]
["Schiefner, Udo, SPD","SPD"]
["Schiewerling, Karl, CDU/CSU","CDU/CSU"]
["Schimke, Jana, CDU/CSU","CDU/CSU"]
["Schindler, Norbert, CDU/CSU","CDU/CSU"]
["Schipanski, Tankred, CDU/CSU","CDU/CSU"]
["Schlecht, Michael, Die Linke","Die Linke"]
["Schlegel, Dr. Dorothee, SPD","SPD"]
["Schmelzle, Heiko, CDU/CSU","CDU/CSU"]
["Schmidt (Fürth), Christian, CDU/CSU","CDU/CSU"]
["Schmidt (Wetzlar), Dagmar, SPD","SPD"]
["Schmidt, Dr. Frithjof, Bündnis 90/Die Grünen","Bündnis 90/Die Grünen"]
["Schmidt (Ühlingen), Gabriele, CDU/CSU","CDU/CSU"]
["Schmidt (Berlin), Matthias, SPD","SPD"]
["Schmidt (Aachen), Ulla, SPD","SPD"]
["Schmitt (Althengstett), Ronja, CDU/CSU","CDU/CSU"]
["Schneider (Erfurt), Carsten, SPD","SPD"]
["Schnieder, Patrick, CDU/CSU","CDU/CSU"]
["Schockenhoff, Dr. Andreas, CDU/CSU *","Fehler"]
["Schön (St. Wendel), Nadine, CDU/CSU","CDU/CSU"]
["Schröder (Wiesbaden), Dr. Kristina, CDU/CSU","CDU/CSU"]
["Schröder, Dr. Ole, CDU/CSU","CDU/CSU"]
["Schulte, Ursula, SPD","SPD"]
["Schulte-Drüggelte, Bernhard, CDU/CSU","CDU/CSU"]
["Schulz (Spandau), Swen, SPD","SPD"]
["Schulz-Asche, Kordula, Bündnis 90/Die Grünen","Bündnis 90/Die Grünen"]
["Schulze, Dr. Klaus-Peter, CDU/CSU","CDU/CSU"]
["Schummer, Uwe, CDU/CSU","CDU/CSU"]
["Schurer, Ewald, SPD","SPD"]
["Schuster (Weil am Rhein), Armin, CDU/CSU","CDU/CSU"]
["Schwabe, Frank, SPD","SPD"]
["Schwartze, Stefan, SPD","SPD"]
["Schwarz, Andreas, SPD","SPD"]
["Schwarzelühr-Sutter, Rita, SPD","SPD"]
["Schwarzer, Christina, CDU/CSU","CDU/CSU"]
["Seif, Detlef, CDU/CSU","CDU/CSU"]
["Selle, Johannes, CDU/CSU",{"$f":"IF(RIGHT(A520,3)=\"CSU\",\"CDU/CSU\",IF(RIGHT(A520,3)=\"SPD\",\"SPD\",IF(RIGHT(A520,3)=\"nen\",\"Bündnis 90/Die Grünen\",IF(RIGHT(A520,3)=\"nke\",\"Die Linke\",\"Fehler\"))))","v":"CDU/CSU"}]
["Sendker, Reinhold, CDU/CSU","CDU/CSU"]
["Sensburg, Prof. Dr. Patrick, CDU/CSU","CDU/CSU"]
["Siebert, Bernd, CDU/CSU","CDU/CSU"]
["Sieling, Dr. Carsten, SPD","SPD"]
["Silberhorn, Thomas, CDU/CSU","CDU/CSU"]
["Singhammer, Johannes, CDU/CSU","CDU/CSU"]
["Sitte, Dr. Petra, Die Linke","Die Linke"]
["Sorge, Tino, CDU/CSU","CDU/CSU"]
["Spahn, Jens, CDU/CSU","CDU/CSU"]
["Spiering, Rainer, SPD","SPD"]
["Spinrath, Norbert, SPD","SPD"]
["Stadler, Svenja, SPD","SPD"]
["Stamm-Fibich, Martina, SPD","SPD"]
["Stauche, Carola, CDU/CSU","CDU/CSU"]
["Steffel, Dr. Frank, CDU/CSU","CDU/CSU"]
["Steffen, Sonja, SPD","SPD"]
["Stefinger, Dr. Wolfgang, CDU/CSU","CDU/CSU"]
["Stegemann, Albert, CDU/CSU","CDU/CSU"]
["Stein, Peter, CDU/CSU","CDU/CSU"]
["Steinbach, Erika, CDU/CSU","CDU/CSU"]
["Steinbrück, Peer, SPD","SPD"]
["Steineke, Sebastian, CDU/CSU","CDU/CSU"]
["Steiniger, Johannes, CDU/CSU","CDU/CSU"]
["Steinke, Kersten, Die Linke","Die Linke"]
["Steinmeier, Dr. Frank-Walter, SPD","SPD"]
["Stetten, Christian Freiherr von, CDU/CSU","CDU/CSU"]
["Stier, Dieter, CDU/CSU","CDU/CSU"]
["Stockhofe, Rita, CDU/CSU","CDU/CSU"]
["Storjohann, Gero, CDU/CSU","CDU/CSU"]
["Stracke, Stephan, CDU/CSU","CDU/CSU"]
["Strässer, Christoph, SPD","SPD"]
["Straubinger, Max, CDU/CSU","CDU/CSU"]
["Strebl, Matthäus, CDU/CSU","CDU/CSU"]
["Strengmann-Kuhn, Dr. Wolfgang, Bündnis 90/Die Grünen","Bündnis 90/Die Grünen"]
["Strenz, Karin, CDU/CSU","CDU/CSU"]
["Stritzl, Thomas, CDU/CSU","CDU/CSU"]
["Ströbele, Hans-Christian, Bündnis 90/Die Grünen","Bündnis 90/Die Grünen"]
["Strobl (Heilbronn), Thomas, CDU/CSU","CDU/CSU"]
["Strothmann, Lena, CDU/CSU","CDU/CSU"]
["Stübgen, Michael, CDU/CSU","CDU/CSU"]
["Sütterlin-Waack, Dr. Sabine, CDU/CSU","CDU/CSU"]
["Tack, Kerstin, SPD","SPD"]
["Tackmann, Dr. Kirsten, Die Linke","Die Linke"]
["Tank, Azize, Die Linke","Die Linke"]
["Tauber, Dr. Peter, CDU/CSU","CDU/CSU"]
["Tausend, Claudia, SPD","SPD"]
["Tempel, Frank, Die Linke","Die Linke"]
["Terpe, Dr. Harald, Bündnis 90/Die Grünen","Bündnis 90/Die Grünen"]
["Thews, Michael, SPD","SPD"]
["Thönnes, Franz, SPD","SPD"]
["Tiefensee, Wolfgang, SPD *","Fehler"]
["Tillmann, Antje, CDU/CSU","CDU/CSU"]
["Timmermann-Fechter, Astrid, CDU/CSU","CDU/CSU"]
["Träger, Carsten, SPD","SPD"]
["Tressel, Markus, Bündnis 90/Die Grünen","Bündnis 90/Die Grünen"]
["Trittin, Jürgen, Bündnis 90/Die Grünen","Bündnis 90/Die Grünen"]
["Troost, Dr. Axel, Die Linke","Die Linke"]
["Uhl, Dr. Hans-Peter, CDU/CSU","CDU/CSU"]
["Ullrich, Dr. Volker, CDU/CSU","CDU/CSU"]
["Ulrich, Alexander, Die Linke","Die Linke"]
["Vaatz, Arnold, CDU/CSU","CDU/CSU"]
["Veit, Rüdiger, SPD","SPD"]
["Veith, Oswin, CDU/CSU","CDU/CSU"]
["Verlinden, Dr. Julia, Bündnis 90/Die Grünen",{"$f":"IF(RIGHT(A584,3)=\"CSU\",\"CDU/CSU\",IF(RIGHT(A584,3)=\"SPD\",\"SPD\",IF(RIGHT(A584,3)=\"nen\",\"Bündnis 90/Die Grünen\",IF(RIGHT(A584,3)=\"nke\",\"Die Linke\",\"Fehler\"))))","v":"Bündnis 90/Die Grünen"}]
["Viesehon, Thomas, CDU/CSU","CDU/CSU"]
["Vietz, Michael, CDU/CSU","CDU/CSU"]
["Vogel (Kleinsaara), Volkmar, CDU/CSU","CDU/CSU"]
["Vogler, Kathrin, Die Linke","Die Linke"]
["Vogt, Ute, SPD","SPD"]
["Volmering, Sven, CDU/CSU","CDU/CSU"]
["Vöpel, Dirk, SPD","SPD"]
["Voßbeck-Kayser, Christel, CDU/CSU","CDU/CSU"]
["Vries, Kees de, CDU/CSU","CDU/CSU"]
["Wadephul, Dr. Johann, CDU/CSU","CDU/CSU"]
["Wagenknecht, Dr. Sahra, Die Linke","Die Linke"]
["Wagner, Doris, Bündnis 90/Die Grünen","Bündnis 90/Die Grünen"]
["Walter-Rosenheimer, Beate, Bündnis 90/Die Grünen","Bündnis 90/Die Grünen"]
["Wanderwitz, Marco, CDU/CSU","CDU/CSU"]
["Warken, Nina, CDU/CSU","CDU/CSU"]
["Wawzyniak, Halina, Die Linke","Die Linke"]
["Weber, Gabi, SPD","SPD"]
["Wegner, Kai, CDU/CSU","CDU/CSU"]
["Weiler, Albert, CDU/CSU","CDU/CSU"]
["Weinberg, Harald, Die Linke","Die Linke"]
["Weinberg (Hamburg), Marcus, CDU/CSU","CDU/CSU"]
["Weisgerber, Dr. Anja, CDU/CSU","CDU/CSU"]
["Weiß (Emmendingen), Peter, CDU/CSU","CDU/CSU"]
["Weiss (Wesel I), Sabine, CDU/CSU","CDU/CSU"]
["Wellenreuther, Ingo, CDU/CSU","CDU/CSU"]
["Wellmann, Karl-Georg, CDU/CSU","CDU/CSU"]
["Wendt, Marian, CDU/CSU","CDU/CSU"]
["Werner, Katrin, Die Linke","Die Linke"]
["Westermayer, Waldemar, CDU/CSU","CDU/CSU"]
["Westphal, Bernd, SPD","SPD"]
["Whittaker, Kai, CDU/CSU","CDU/CSU"]
["Wichtel, Peter, CDU/CSU","CDU/CSU"]
["Wicklein, Andrea, SPD","SPD"]
["Widmann-Mauz, Annette, CDU/CSU","CDU/CSU"]
["Wiese, Dirk, SPD","SPD"]
["Wiese (Ehingen), Heinz, CDU/CSU","CDU/CSU"]
["Willsch, Klaus-Peter, CDU/CSU","CDU/CSU"]
["Wilms, Dr. Valerie, Bündnis 90/Die Grünen","Bündnis 90/Die Grünen"]
["Winkelmeier-Becker, Elisabeth, CDU/CSU","CDU/CSU"]
["Wittke, Oliver, CDU/CSU","CDU/CSU"]
["Wöhrl, Dagmar G., CDU/CSU","CDU/CSU"]
["Wolff (Wolmirstedt), Waltraud, SPD","SPD"]
["Wöllert, Birgit, Die Linke","Die Linke"]
["Woltmann, Barbara, CDU/CSU","CDU/CSU"]
["Wunderlich, Jörn, Die Linke","Die Linke"]
["Yüksel, Gülistan, SPD","SPD"]
["Zdebel, Hubertus, Die Linke","Die Linke"]
["Zech, Tobias, CDU/CSU","CDU/CSU"]
["Zertik, Heinrich, CDU/CSU","CDU/CSU"]
["Zeulner, Emmi, CDU/CSU","CDU/CSU"]
["Ziegler, Dagmar, SPD","SPD"]
["Zierke, Stefan, SPD","SPD"]
["Zimmer, Prof. Dr. Matthias, CDU/CSU","CDU/CSU"]
["Zimmermann, Dr. Jens, SPD","SPD"]
["Zimmermann, Pia, Die Linke","Die Linke"]
["Zimmermann (Zwickau), Sabine, Die Linke","Die Linke"]
["Zöllmer, Manfred, SPD","SPD"]
["Zollner, Gudrun, CDU/CSU","CDU/CSU"]
["Zypries, Brigitte, SPD","SPD"]

{"sheet":"Alle Parteien (VBA)","index":2,"n_rows":643,"n_cols":2,"rows_kept":643,"cut":false,"hidden":true,"merged":[]}
["Alphabetische Liste aller Mitglieder \ndes 18. Deutschen Bundestages, Stand 04.05.2015","Partei\n(per Funktion)"]
["Aken, Jan van, Die Linke",{"$f":"Parteizugehoerigkeit(A2)","v":"Die Linke"}]
["Albani, Stephan, CDU/CSU",{"$f":"Parteizugehoerigkeit(A3)","v":"CDU/CSU"}]
["Albsteiger, Katrin, CDU/CSU","CDU/CSU"]
["Alpers, Agnes, Die Linke *","Die Linke"]
["Altmaier, Peter, CDU/CSU","CDU/CSU"]
["Amtsberg, Luise, Bündnis 90/Die Grünen","Bündnis 90/Die Grünen"]
["Andreae, Kerstin, Bündnis 90/Die Grünen","Bündnis 90/Die Grünen"]
["Annen, Niels, SPD","SPD"]
["Arndt-Brauer, Ingrid, SPD","SPD"]
["Arnold, Rainer, SPD","SPD"]
["Auernhammer, Artur, CDU/CSU","CDU/CSU"]
["Baehrens, Heike, SPD","SPD"]
["Baerbock, Annalena, Bündnis 90/Die Grünen","Bündnis 90/Die Grünen"]
["Bahr, Ulrike, SPD","SPD"]
["Bär, Dorothee, CDU/CSU","CDU/CSU"]
["Barchmann, Heinz-Joachim, SPD","SPD"]
["Bareiß, Thomas, CDU/CSU","CDU/CSU"]
["Barley, Dr. Katarina, SPD","SPD"]
["Barnett, Doris, SPD","SPD"]
["Bartels, Dr. Hans-Peter, SPD","SPD"]
["Barthel, Klaus, SPD","SPD"]
["Barthle, Norbert, CDU/CSU","CDU/CSU"]
["Bartke, Dr. Matthias, SPD","SPD"]
["Bartol, Sören, SPD","SPD"]
["Bartsch, Dr. Dietmar, Die Linke","Die Linke"]
["Bas, Bärbel, SPD","SPD"]
["Bätzing-Lichtenthäler, Sabine, SPD *","SPD"]
["Baumann, Günter, CDU/CSU","CDU/CSU"]
["Beck (Bremen), Marieluise, Bündnis 90/Die Grünen","Bündnis 90/Die Grünen"]
["Beck (Köln), Volker, Bündnis 90/Die Grünen","Bündnis 90/Die Grünen"]
["Becker, Dirk, SPD","SPD"]
["Beckmeyer, Uwe, SPD","SPD"]
["Beermann, Maik, CDU/CSU","CDU/CSU"]
["Behrens, Herbert, Die Linke","Die Linke"]
["Behrens (Börde), Manfred, CDU/CSU","CDU/CSU"]
["Bellmann, Veronika, CDU/CSU","CDU/CSU"]
["Benning, Sybille, CDU/CSU","CDU/CSU"]
["Berghegger, Dr. André, CDU/CSU","CDU/CSU"]
["Bergner, Dr. Christoph, CDU/CSU","CDU/CSU"]
["Bertram, Ute, CDU/CSU","CDU/CSU"]
["Beyer, Peter, CDU/CSU","CDU/CSU"]
["Bilger, Steffen, CDU/CSU","CDU/CSU"]
["Binder, Karin, Die Linke","Die Linke"]
["Binding (Heidelberg), Lothar, SPD","SPD"]
["Binninger, Clemens, CDU/CSU","CDU/CSU"]
["Birkwald, Matthias W., Die Linke","Die Linke"]
["Bleser, Peter, CDU/CSU","CDU/CSU"]
["Blienert, Burkhard, SPD","SPD"]
["Bluhm, Heidrun, Die Linke","Die Linke"]
["Böhmer, Prof. Dr. Maria, CDU/CSU","CDU/CSU"]
["Bosbach, Wolfgang, CDU/CSU","CDU/CSU"]
["Brackmann, Norbert, CDU/CSU","CDU/CSU"]
["Brähmig, Klaus, CDU/CSU","CDU/CSU"]
["Brand, Michael, CDU/CSU","CDU/CSU"]
["Brandl, Dr. Reinhard, CDU/CSU","CDU/CSU"]
["Brandt, Helmut, CDU/CSU","CDU/CSU"]
["Brantner, Dr. Franziska, Bündnis 90/Die Grünen","Bündnis 90/Die Grünen"]
["Brase, Willi, SPD","SPD"]
["Brauksiepe, Dr. Ralf, CDU/CSU","CDU/CSU"]
["Braun, Dr. Helge, CDU/CSU","CDU/CSU"]
["Brehmer, Heike, CDU/CSU","CDU/CSU"]
["Brinkhaus, Ralph, CDU/CSU","CDU/CSU"]
["Brugger, Agnieszka, Bündnis 90/Die Grünen","Bündnis 90/Die Grünen"]
["Brunner, Dr. Karl-Heinz, SPD","SPD"]
["Buchholz, Christine, Die Linke","Die Linke"]
["Bulling-Schröter, Eva, Die Linke",{"$f":"Parteizugehoerigkeit(A67)","v":"Die Linke"}]
["Bulmahn, Edelgard, SPD","SPD"]
["Bülow, Marco, SPD","SPD"]
["Burkert, Martin, SPD","SPD"]
["Caesar, Cajus, CDU/CSU","CDU/CSU"]
["Castellucci, Prof. Dr. Lars, SPD","SPD"]
["Claus, Roland, Die Linke","Die Linke"]
["Connemann, Gitta, CDU/CSU","CDU/CSU"]
["Crone, Petra, SPD","SPD"]
["Daldrup, Bernhard, SPD","SPD"]
["Dagdelen, Sevim, Die Linke","Die Linke"]
["De Ridder, Dr. rer. pol. Daniela, SPD","SPD"]
["Dehm, Dr. Diether, Die Linke","Die Linke"]
["Deligöz, Ekin, Bündnis 90/Die Grünen","Bündnis 90/Die Grünen"]
["Diaby, Dr. rer. nat. Karamba, SPD","SPD"]
["Dinges-Dierig, Alexandra, CDU/CSU","CDU/CSU"]
["Dittmar, Sabine, SPD","SPD"]
["Dobrindt, Alexander, CDU/CSU","CDU/CSU"]
["Donth, Michael, CDU/CSU","CDU/CSU"]
["Dörflinger, Thomas, CDU/CSU","CDU/CSU"]
["Dörmann, Martin, SPD","SPD"]
["Dörner, Katja, Bündnis 90/Die Grünen","Bündnis 90/Die Grünen"]
["Dött, Marie-Luise, CDU/CSU","CDU/CSU"]
["Drobinski-Weiß, Elvira, SPD","SPD"]
["Dröge, Katharina, Bündnis 90/Die Grünen","Bündnis 90/Die Grünen"]
["Durz, Hansjörg, CDU/CSU","CDU/CSU"]
["Eberl, Iris, CDU/CSU","CDU/CSU"]
["Ebner, Harald, Bündnis 90/Die Grünen","Bündnis 90/Die Grünen"]
["Eckenbach, Jutta, CDU/CSU","CDU/CSU"]
["Edathy, Sebastian, SPD *","SPD"]
["Ehrmann, Siegmund, SPD","SPD"]
["Engelmeier, Michaela, SPD","SPD"]
["Erler, Dr. h.c. Gernot, SPD","SPD"]
["Ernst, Klaus, Die Linke","Die Linke"]
["Ernstberger, Petra, SPD","SPD"]
["Esken, Saskia, SPD","SPD"]
["Evers-Meyer, Karin, SPD","SPD"]
["Fabritius, Dr. Bernd, CDU/CSU","CDU/CSU"]
["Färber, Hermann, CDU/CSU","CDU/CSU"]
["Fechner, Dr. Johannes, SPD","SPD"]
["Feiler, Uwe, CDU/CSU","CDU/CSU"]
["Feist, Dr. Thomas, CDU/CSU","CDU/CSU"]
["Felgentreu, Dr. Fritz, SPD","SPD"]
["Ferlemann, Enak, CDU/CSU","CDU/CSU"]
["Ferner, Elke, SPD","SPD"]
["Finckh-Krämer, Dr. rer. nat. Ute, SPD","SPD"]
["Fischbach, Ingrid, CDU/CSU","CDU/CSU"]
["Fischer (Karlsruhe-Land), Axel E., CDU/CSU","CDU/CSU"]
["Fischer (Hamburg), Dirk, CDU/CSU","CDU/CSU"]
["Flachsbarth, Dr. Maria, CDU/CSU","CDU/CSU"]
["Flisek, Christian, SPD","SPD"]
["Flosbach, Klaus-Peter, CDU/CSU","CDU/CSU"]
["Fograscher, Gabriele, SPD","SPD"]
["Franke, Dr. Edgar, SPD","SPD"]
["Freese, Ulrich, SPD","SPD"]
["Frei, Thorsten, CDU/CSU","CDU/CSU"]
["Freitag, Dagmar, SPD","SPD"]
["Freudenstein, Dr. Astrid, CDU/CSU","CDU/CSU"]
["Friedrich (Hof), Dr. Hans-Peter, CDU/CSU","CDU/CSU"]
["Frieser, Michael, CDU/CSU","CDU/CSU"]
["Fuchs, Dr. Michael, CDU/CSU","CDU/CSU"]
["Fuchtel, Hans-Joachim, CDU/CSU","CDU/CSU"]
["Funk, Alexander, CDU/CSU","CDU/CSU"]
["Gabriel, Sigmar, SPD","SPD"]
["Gädechens, Ingo, CDU/CSU",{"$f":"Parteizugehoerigkeit(A131)","v":"CDU/CSU"}]
["Gambke, Dr. Thomas, Bündnis 90/Die Grünen","Bündnis 90/Die Grünen"]
["Gastel, Matthias, Bündnis 90/Die Grünen","Bündnis 90/Die Grünen"]
["Gauweiler, Dr. Peter, CDU/CSU *","CDU/CSU"]
["Gebhart, Dr. Thomas, CDU/CSU","CDU/CSU"]
["Gehrcke, Wolfgang, Die Linke","Die Linke"]
["Gehring, Kai, Bündnis 90/Die Grünen","Bündnis 90/Die Grünen"]
["Gerdes, Michael, SPD","SPD"]
["Gerig, Alois, CDU/CSU","CDU/CSU"]
["Gerster, Martin, SPD","SPD"]
["Gienger, Eberhard, CDU/CSU","CDU/CSU"]
["Giousouf, Cemile, CDU/CSU","CDU/CSU"]
["Gleicke, Iris, SPD","SPD"]
["Glöckner, Angelika, SPD","SPD"]
["Gohlke, Nicole, Die Linke","Die Linke"]
["Golze, Diana, Die Linke *","Die Linke"]
["Göppel, Josef, CDU/CSU","CDU/CSU"]
["Göring-Eckardt, Katrin, Bündnis 90/Die Grünen","Bündnis 90/Die Grünen"]
["Gottschalck, Ulrike, SPD","SPD"]
["Griese, Kerstin, SPD","SPD"]
["Grindel, Reinhard, CDU/CSU","CDU/CSU"]
["Groden-Kranich, Ursula, CDU/CSU","CDU/CSU"]
["Gröhe, Hermann, CDU/CSU","CDU/CSU"]
["Gröhler, Klaus-Dieter, CDU/CSU","CDU/CSU"]
["Groneberg, Gabriele, SPD","SPD"]
["Groß, Michael, SPD","SPD"]
["Grosse-Brömer, Michael, CDU/CSU","CDU/CSU"]
["Grotelüschen, Astrid, CDU/CSU","CDU/CSU"]
["Groth, Annette, Die Linke","Die Linke"]
["Grötsch, Uli, SPD","SPD"]
["Grübel, Markus, CDU/CSU","CDU/CSU"]
["Grund, Manfred, CDU/CSU","CDU/CSU"]
["Grundmann, Oliver, CDU/CSU","CDU/CSU"]
["Grütters, Monika, CDU/CSU","CDU/CSU"]
["Gundelach, Dr. Herlind, CDU/CSU","CDU/CSU"]
["Gunkel, Wolfgang, SPD","SPD"]
["Güntzler, Fritz, CDU/CSU","CDU/CSU"]
["Gutting, Olav, CDU/CSU","CDU/CSU"]
["Gysi, Dr. Gregor, Die Linke","Die Linke"]
["Haase, Christian, CDU/CSU","CDU/CSU"]
["Hagedorn, Bettina, SPD","SPD"]
["Hagl-Kehl, Rita, SPD","SPD"]
["Hahn, Dr. André, Die Linke","Die Linke"]
["Hahn, Florian, CDU/CSU","CDU/CSU"]
["Hajduk, Anja, Bündnis 90/Die Grünen","Bündnis 90/Die Grünen"]
["Hakverdi, Metin, SPD","SPD"]
["Hampel, Ulrich, SPD","SPD"]
["Hänsel, Heike, Die Linke","Die Linke"]
["Harbarth, Dr. Stephan, CDU/CSU","CDU/CSU"]
["Hardt, Jürgen, CDU/CSU","CDU/CSU"]
["Hartmann (Wackernheim), Michael, SPD","SPD"]
["Hartmann, Sebastian, SPD","SPD"]
["Hasselfeldt, Gerda, CDU/CSU","CDU/CSU"]
["Haßelmann, Britta, Bündnis 90/Die Grünen","Bündnis 90/Die Grünen"]
["Hauer, Matthias, CDU/CSU","CDU/CSU"]
["Hauptmann, Mark, CDU/CSU","CDU/CSU"]
["Heck, Dr. Stefan, CDU/CSU","CDU/CSU"]
["Heidenblut, Dirk, SPD","SPD"]
["Heider, Dr. Matthias, CDU/CSU","CDU/CSU"]
["Heiderich, Helmut, CDU/CSU","CDU/CSU"]
["Heil (Peine), Hubertus, SPD","SPD"]
["Heil, Mechthild, CDU/CSU","CDU/CSU"]
["Hein, Dr. Rosemarie, Die Linke","Die Linke"]
["Heinrich (Chemnitz), Frank, CDU/CSU","CDU/CSU"]
["Heinrich, Gabriela, SPD",{"$f":"Parteizugehoerigkeit(A195)","v":"SPD"}]
["Held, Marcus, SPD","SPD"]
["Helfrich, Mark, CDU/CSU","CDU/CSU"]
["Heller, Uda, CDU/CSU","CDU/CSU"]
["Hellmich, Wolfgang, SPD","SPD"]
["Hellmuth, Jörg, CDU/CSU","CDU/CSU"]
["Hendricks, Dr. Barbara, SPD","SPD"]
["Henke, Rudolf, CDU/CSU","CDU/CSU"]
["Henn, Heidtrud, SPD","SPD"]
["Hennrich, Michael, CDU/CSU","CDU/CSU"]
["Herzog, Gustav, SPD","SPD"]
["Heveling, Ansgar, CDU/CSU","CDU/CSU"]
["Hiller-Ohm, Gabriele, SPD","SPD"]
["Hintze, Peter, CDU/CSU","CDU/CSU"]
["Hinz (Essen), Petra, SPD","SPD"]
["Hinz (Herborn), Priska, Bündnis 90/Die Grünen *","Bündnis 90/Die Grünen"]
["Hirte, Christian, CDU/CSU","CDU/CSU"]
["Hirte, Prof. Dr. iur. Heribert, CDU/CSU","CDU/CSU"]
["Hitschler, Thomas, SPD","SPD"]
["Hochbaum, Robert, CDU/CSU","CDU/CSU"]
["Hoffmann, Alexander, CDU/CSU","CDU/CSU"]
["Hoffmann (Dortmund), Thorsten, CDU/CSU","CDU/CSU"]
["Hofreiter, Dr. Anton, Bündnis 90/Die Grünen","Bündnis 90/Die Grünen"]
["Höger, Inge, Die Linke","Die Linke"]
["Högl, Dr. Eva, SPD","SPD"]
["Höhn, Bärbel, Bündnis 90/Die Grünen","Bündnis 90/Die Grünen"]
["Holmeier, Karl, CDU/CSU","CDU/CSU"]
["Holzenkamp, Franz-Josef, CDU/CSU","CDU/CSU"]
["Hoppenstedt, Dr. Hendrik, CDU/CSU","CDU/CSU"]
["Horb, Margaret, CDU/CSU","CDU/CSU"]
["Hornhues, Bettina, CDU/CSU","CDU/CSU"]
["Huber, Karl-Heinz (Charles M.), CDU/CSU","CDU/CSU"]
["Hübinger, Anette, CDU/CSU","CDU/CSU"]
["Hunko, Andrej, Die Linke","Die Linke"]
["Hupach, Sigrid, Die Linke","Die Linke"]
["Hüppe, Hubert, CDU/CSU","CDU/CSU"]
["Ilgen, Matthias, SPD","SPD"]
["Irlstorfer, Erich, CDU/CSU","CDU/CSU"]
["Janecek, Dieter, Bündnis 90/Die Grünen","Bündnis 90/Die Grünen"]
["Jantz, Christina, SPD","SPD"]
["Jarzombek, Thomas, CDU/CSU","CDU/CSU"]
["Jelpke, Ulla, Die Linke","Die Linke"]
["Jörrißen, Sylvia, CDU/CSU","CDU/CSU"]
["Jost, Reinhold, SPD *","SPD"]
["Jung, Andreas, CDU/CSU","CDU/CSU"]
["Jung, Dr. Franz Josef, CDU/CSU","CDU/CSU"]
["Jung, Xaver, CDU/CSU","CDU/CSU"]
["Junge, Frank, SPD","SPD"]
["Juratovic, Josip, SPD","SPD"]
["Jurk, Thomas, SPD","SPD"]
["Jüttner, Dr. Egon, CDU/CSU","CDU/CSU"]
["Kaczmarek, Oliver, SPD","SPD"]
["Kahrs, Johannes, SPD","SPD"]
["Kalb, Bartholomäus, CDU/CSU","CDU/CSU"]
["Kammer, Hans-Werner, CDU/CSU","CDU/CSU"]
["Kampeter, Steffen, CDU/CSU","CDU/CSU"]
["Kampmann, Christina, SPD","SPD"]
["Kanitz, Steffen, CDU/CSU","CDU/CSU"]
["Kapschack, Ralf, SPD","SPD"]
["Karawanskij, Susanna, Die Linke","Die Linke"]
["Karl, Alois, CDU/CSU","CDU/CSU"]
["Karliczek, Anja, CDU/CSU","CDU/CSU"]
["Kassner, Kerstin, Die Linke","Die Linke"]
["Kaster, Bernhard, CDU/CSU","CDU/CSU"]
["Katzmarek, Gabriele, SPD",{"$f":"Parteizugehoerigkeit(A259)","v":"SPD"}]
["Kauder, Volker, CDU/CSU","CDU/CSU"]
["Kaufmann, Dr. Stefan, CDU/CSU","CDU/CSU"]
["Kekeritz, Uwe, Bündnis 90/Die Grünen","Bündnis 90/Die Grünen"]
["Kelber, Ulrich, SPD","SPD"]
["Kermer, Marina, SPD","SPD"]
["Keul, Katja, Bündnis 90/Die Grünen","Bündnis 90/Die Grünen"]
["Kiesewetter, Roderich, CDU/CSU","CDU/CSU"]
["Kindler, Sven-Christian, Bündnis 90/Die Grünen","Bündnis 90/Die Grünen"]
["Kippels, Dr. Georg, CDU/CSU","CDU/CSU"]
["Kipping, Katja, Die Linke","Die Linke"]
["Kiziltepe, Cansel, SPD","SPD"]
["Klare, Arno, SPD","SPD"]
["Klein, Volkmar, CDU/CSU","CDU/CSU"]
["Klein-Schmeink, Maria, Bündnis 90/Die Grünen","Bündnis 90/Die Grünen"]
["Klimke, Jürgen, CDU/CSU","CDU/CSU"]
["Klingbeil, Lars, SPD","SPD"]
["Knoerig, Axel, CDU/CSU","CDU/CSU"]
["Koenigs, Tom, Bündnis 90/Die Grünen","Bündnis 90/Die Grünen"]
["Koeppen, Jens, CDU/CSU","CDU/CSU"]
["Kofler, Dr. Bärbel, SPD","SPD"]
["Kolbe, Daniela, SPD","SPD"]
["Kömpel, Birgit, SPD","SPD"]
["Koob, Markus, CDU/CSU","CDU/CSU"]
["Körber, Carsten, CDU/CSU","CDU/CSU"]
["Korte, Jan, Die Linke","Die Linke"]
["Koschyk, Hartmut, CDU/CSU","CDU/CSU"]
["Kotting-Uhl, Sylvia, Bündnis 90/Die Grünen","Bündnis 90/Die Grünen"]
["Kovac, Kordula, CDU/CSU","CDU/CSU"]
["Kramme, Anette, SPD","SPD"]
["Krellmann, Jutta, Die Linke","Die Linke"]
["Kretschmer, Michael, CDU/CSU","CDU/CSU"]
["Krichbaum, Gunther, CDU/CSU","CDU/CSU"]
["Krings, Dr. Günter, CDU/CSU","CDU/CSU"]
["Krischer, Oliver, Bündnis 90/Die Grünen","Bündnis 90/Die Grünen"]
["Krüger, Dr. Hans-Ulrich, SPD","SPD"]
["Kruse, Rüdiger, CDU/CSU","CDU/CSU"]
["Kudla, Bettina, CDU/CSU","CDU/CSU"]
["Kühn (Tübingen), Christian, Bündnis 90/Die Grünen","Bündnis 90/Die Grünen"]
["Kühn (Dresden), Stephan, Bündnis 90/Die Grünen","Bündnis 90/Die Grünen"]
["Kühn-Mengel, Helga, SPD","SPD"]
["Kühne, Dr. Roy, CDU/CSU","CDU/CSU"]
["Künast, Renate, Bündnis 90/Die Grünen","Bündnis 90/Die Grünen"]
["Kunert, Katrin, Die Linke","Die Linke"]
["Kurth, Markus, Bündnis 90/Die Grünen","Bündnis 90/Die Grünen"]
["Lach, Günter, CDU/CSU","CDU/CSU"]
["Lagosky, Uwe, CDU/CSU","CDU/CSU"]
["Lambrecht, Christine, SPD","SPD"]
["Lamers, Dr. Dr. h.c. Karl A., CDU/CSU","CDU/CSU"]
["Lämmel, Andreas G., CDU/CSU","CDU/CSU"]
["Lammert, Prof. Dr. Norbert, CDU/CSU","CDU/CSU"]
["Landgraf, Katharina, CDU/CSU","CDU/CSU"]
["Lange (Backnang), Christian, SPD","SPD"]
["Lange, Ulrich, CDU/CSU","CDU/CSU"]
["Lanzinger, Barbara, CDU/CSU","CDU/CSU"]
["Launert, Dr. Silke, CDU/CSU","CDU/CSU"]
["Lauterbach, Dr. Karl, SPD","SPD"]
["Lay, Caren, Die Linke","Die Linke"]
["Lazar, Monika, Bündnis 90/Die Grünen","Bündnis 90/Die Grünen"]
["Lehrieder, Paul, CDU/CSU","CDU/CSU"]
["Leidig, Sabine, Die Linke","Die Linke"]
["Leikert, Dr. Katja, CDU/CSU","CDU/CSU"]
["Lemke, Steffi, Bündnis 90/Die Grünen","Bündnis 90/Die Grünen"]
["Lemme, Steffen-Claudio, SPD","SPD"]
["Lengsfeld, Dr. Philipp, CDU/CSU",{"$f":"Parteizugehoerigkeit(A323)","v":"CDU/CSU"}]
["Lenkert, Ralph, Die Linke","Die Linke"]
["Lenz, Dr. Andreas, CDU/CSU","CDU/CSU"]
["Lerchenfeld, Philipp Graf, CDU/CSU","CDU/CSU"]
["Leutert, Michael, Die Linke","Die Linke"]
["Leyen, Dr. Ursula von der, CDU/CSU","CDU/CSU"]
["Lezius, Antje, CDU/CSU","CDU/CSU"]
["Liebich, Stefan, Die Linke","Die Linke"]
["Liebing, Ingbert, CDU/CSU","CDU/CSU"]
["Lietz, Matthias, CDU/CSU","CDU/CSU"]
["Lindholz, Andrea, CDU/CSU","CDU/CSU"]
["Lindner, Dr. Tobias, Bündnis 90/Die Grünen","Bündnis 90/Die Grünen"]
["Linnemann, Dr. Carsten, CDU/CSU","CDU/CSU"]
["Lips, Patricia, CDU/CSU","CDU/CSU"]
["Lischka, Burkhard, SPD","SPD"]
["Lorenz, Wilfried, CDU/CSU","CDU/CSU"]
["Lösekrug-Möller, Gabriele, SPD","SPD"]
["Lotze, Hiltrud, SPD","SPD"]
["Lötzsch, Dr. Gesine, Die Linke","Die Linke"]
["Lücking-Michel, Dr. Claudia, CDU/CSU","CDU/CSU"]
["Luczak, Dr. Jan-Marco, CDU/CSU","CDU/CSU"]
["Ludwig, Daniela, CDU/CSU","CDU/CSU"]
["Lühmann, Kirsten, SPD","SPD"]
["Lutze, Thomas, Die Linke","Die Linke"]
["Maag, Karin, CDU/CSU","CDU/CSU"]
["Magwas, Yvonne, CDU/CSU","CDU/CSU"]
["Mahlberg, Thomas, CDU/CSU","CDU/CSU"]
["Maisch, Nicole, Bündnis 90/Die Grünen","Bündnis 90/Die Grünen"]
["Maizière, Dr. Thomas de, CDU/CSU","CDU/CSU"]
["Malecha-Nissen, Dr. Birgit, SPD","SPD"]
["Manderla, Gisela, CDU/CSU","CDU/CSU"]
["Marks, Caren, SPD","SPD"]
["Marschall, Matern von, CDU/CSU","CDU/CSU"]
["Marwitz, Hans-Georg von der, CDU/CSU","CDU/CSU"]
["Mast, Katja, SPD","SPD"]
["Mattfeldt, Andreas, CDU/CSU","CDU/CSU"]
["Mattheis, Hilde, SPD","SPD"]
["Mayer (Altötting), Stephan, CDU/CSU","CDU/CSU"]
["Meier, Reiner, CDU/CSU","CDU/CSU"]
["Meister, Dr. Michael, CDU/CSU","CDU/CSU"]
["Meiwald, Peter, Bündnis 90/Die Grünen","Bündnis 90/Die Grünen"]
["Menz, Birgit, Die Linke","Die Linke"]
["Merkel, Dr. Angela, CDU/CSU","CDU/CSU"]
["Metzler, Jan, CDU/CSU","CDU/CSU"]
["Michalk, Maria, CDU/CSU","CDU/CSU"]
["Michelbach, Dr. h. c. Hans, CDU/CSU","CDU/CSU"]
["Middelberg, Dr. Mathias, CDU/CSU","CDU/CSU"]
["Miersch, Dr. Matthias, SPD","SPD"]
["Mihalic, Irene, Bündnis 90/Die Grünen","Bündnis 90/Die Grünen"]
["Mindrup, Klaus, SPD","SPD"]
["Mißfelder, Philipp, CDU/CSU","CDU/CSU"]
["Mittag, Susanne, SPD","SPD"]
["Möhring, Cornelia, Die Linke","Die Linke"]
["Monstadt, Dietrich, CDU/CSU","CDU/CSU"]
["Möring, Karsten, CDU/CSU","CDU/CSU"]
["Mortler, Marlene, CDU/CSU","CDU/CSU"]
["Motschmann, Elisabeth, CDU/CSU","CDU/CSU"]
["Movassat, Niema, Die Linke","Die Linke"]
["Müller, Bettina, SPD","SPD"]
["Müller (Braunschweig), Carsten, CDU/CSU","CDU/CSU"]
["Müller (Chemnitz), Detlef, SPD","SPD"]
["Müller, Dr. Gerd, CDU/CSU","CDU/CSU"]
["Müller (Potsdam), Norbert, Die Linke","Die Linke"]
["Müller (Erlangen), Stefan, CDU/CSU","CDU/CSU"]
["Müller-Gemmeke, Beate, Bündnis 90/Die Grünen",{"$f":"Parteizugehoerigkeit(A387)","v":"Bündnis 90/Die Grünen"}]
["Müntefering, Michelle, SPD","SPD"]
["Murmann, Dr. Philipp, CDU/CSU","CDU/CSU"]
["Mutlu, Özcan, Bündnis 90/Die Grünen","Bündnis 90/Die Grünen"]
["Mützenich, Dr. Rolf, SPD","SPD"]
["Nahles, Andrea, SPD","SPD"]
["Neu, Dr. Alexander S., Die Linke","Die Linke"]
["Nick, Dr. Andreas, CDU/CSU","CDU/CSU"]
["Nietan, Dietmar, SPD","SPD"]
["Nissen, Ulli, SPD","SPD"]
["Noll, Michaela, CDU/CSU","CDU/CSU"]
["Nord, Thomas, Die Linke","Die Linke"]
["Notz, Dr. Konstantin von, Bündnis 90/Die Grünen","Bündnis 90/Die Grünen"]
["Nouripour, Omid, Bündnis 90/Die Grünen","Bündnis 90/Die Grünen"]
["Nowak, Helmut, CDU/CSU","CDU/CSU"]
["Nüßlein, Dr. iur. Georg, CDU/CSU","CDU/CSU"]
["Obermeier, Julia, CDU/CSU","CDU/CSU"]
["Oellers, Wilfried, CDU/CSU","CDU/CSU"]
["Oppermann, Thomas, SPD","SPD"]
["Oßner, Florian, CDU/CSU","CDU/CSU"]
["Ostendorff, Friedrich, Bündnis 90/Die Grünen","Bündnis 90/Die Grünen"]
["Ostermann, Dr. Tim, CDU/CSU","CDU/CSU"]
["Otte, Henning, CDU/CSU","CDU/CSU"]
["Özdemir, Cem, Bündnis 90/Die Grünen","Bündnis 90/Die Grünen"]
["Özdemir (Duisburg), Mahmut, SPD","SPD"]
["Özoguz, Aydan, SPD","SPD"]
["Pahlmann, Ingrid, CDU/CSU","CDU/CSU"]
["Pantel, Sylvia, CDU/CSU","CDU/CSU"]
["Paschke, Markus, SPD","SPD"]
["Patzelt, Martin, CDU/CSU","CDU/CSU"]
["Pätzold, Dr. Martin, CDU/CSU","CDU/CSU"]
["Pau, Petra, Die Linke","Die Linke"]
["Paus, Lisa, Bündnis 90/Die Grünen","Bündnis 90/Die Grünen"]
["Petry, Christian, SPD","SPD"]
["Petzold (Havelland), Harald, Die Linke","Die Linke"]
["Petzold, Ulrich, CDU/CSU","CDU/CSU"]
["Pfeiffer, Dr. Joachim, CDU/CSU","CDU/CSU"]
["Pfeiffer, Sibylle, CDU/CSU","CDU/CSU"]
["Pflugradt, Jeannine, SPD","SPD"]
["Pilger, Detlev, SPD","SPD"]
["Pitterle, Richard, Die Linke","Die Linke"]
["Pofalla, Ronald, CDU/CSU *","CDU/CSU"]
["Pols, Eckhard, CDU/CSU","CDU/CSU"]
["Poschmann, Sabine, SPD","SPD"]
["Poß, Joachim, SPD","SPD"]
["Post (Minden), Achim, SPD","SPD"]
["Post, Florian, SPD","SPD"]
["Pothmer, Brigitte, Bündnis 90/Die Grünen","Bündnis 90/Die Grünen"]
["Priesmeier, Dr. Wilhelm, SPD","SPD"]
["Pronold, Florian, SPD","SPD"]
["Raabe, Dr. Sascha, SPD","SPD"]
["Raatz, Dr. Simone, SPD","SPD"]
["Rabanus, Martin, SPD","SPD"]
["Rachel, Thomas, CDU/CSU","CDU/CSU"]
["Radomski, Kerstin, CDU/CSU","CDU/CSU"]
["Radwan, Alexander, CDU/CSU","CDU/CSU"]
["Rainer, Alois, CDU/CSU","CDU/CSU"]
["Ramsauer, Dr. Peter, CDU/CSU","CDU/CSU"]
["Rawert, Mechthild, SPD","SPD"]
["Rebmann, Stefan, SPD","SPD"]
["Rehberg, Eckhardt, CDU/CSU","CDU/CSU"]
["Reiche (Potsdam), Katherina, CDU/CSU","CDU/CSU"]
["Reichenbach, Gerold, SPD","SPD"]
["Reimann, Dr. Carola, SPD","SPD"]
["Renner, Martina, Die Linke",{"$f":"Parteizugehoerigkeit(A451)","v":"Die Linke"}]
["Riebsamen, Lothar, CDU/CSU","CDU/CSU"]
["Rief, Josef, CDU/CSU","CDU/CSU"]
["Riesenhuber, Prof. Dr. Heinz, CDU/CSU","CDU/CSU"]
["Rimkus, Andreas, SPD","SPD"]
["Rix, Sönke, SPD","SPD"]
["Rohde, Dennis, SPD","SPD"]
["Röring, Johannes, CDU/CSU","CDU/CSU"]
["Rosemann, Dr. Martin, SPD","SPD"]
["Röspel, René, SPD","SPD"]
["Rossmann, Dr. Ernst Dieter, SPD","SPD"]
["Rößner, Tabea, Bündnis 90/Die Grünen","Bündnis 90/Die Grünen"]
["Roth (Augsburg), Claudia, Bündnis 90/Die Grünen","Bündnis 90/Die Grünen"]
["Roth (Heringen), Michael, SPD","SPD"]
["Röttgen, Dr. Norbert, CDU/CSU","CDU/CSU"]
["Rüddel, Erwin, CDU/CSU","CDU/CSU"]
["Rüffer, Corinna, Bündnis 90/Die Grünen","Bündnis 90/Die Grünen"]
["Rupprecht, Albert, CDU/CSU","CDU/CSU"]
["Rüthrich, Susann, SPD","SPD"]
["Rützel, Bernd, SPD","SPD"]
["Saathoff, Johann, SPD","SPD"]
["Sarrazin, Manuel, Bündnis 90/Die Grünen","Bündnis 90/Die Grünen"]
["Sawade, Annette, SPD","SPD"]
["Schabedoth, Dr. Hans-Joachim, SPD","SPD"]
["Schäfer (Saalstadt), Anita, CDU/CSU","CDU/CSU"]
["Schäfer (Bochum), Axel, SPD","SPD"]
["Scharfenberg, Elisabeth, Bündnis 90/Die Grünen","Bündnis 90/Die Grünen"]
["Schäuble, Dr. Wolfgang, CDU/CSU","CDU/CSU"]
["Schauws, Ulle, Bündnis 90/Die Grünen","Bündnis 90/Die Grünen"]
["Schavan, Annette, CDU/CSU *","CDU/CSU"]
["Scheer, Dr. Nina, SPD","SPD"]
["Scheuer, Andreas, CDU/CSU","CDU/CSU"]
["Schick, Dr. Gerhard, Bündnis 90/Die Grünen","Bündnis 90/Die Grünen"]
["Schieder, Marianne, SPD","SPD"]
["Schiefner, Udo, SPD","SPD"]
["Schiewerling, Karl, CDU/CSU","CDU/CSU"]
["Schimke, Jana, CDU/CSU","CDU/CSU"]
["Schindler, Norbert, CDU/CSU","CDU/CSU"]
["Schipanski, Tankred, CDU/CSU","CDU/CSU"]
["Schlecht, Michael, Die Linke","Die Linke"]
["Schlegel, Dr. Dorothee, SPD","SPD"]
["Schmelzle, Heiko, CDU/CSU","CDU/CSU"]
["Schmidt (Fürth), Christian, CDU/CSU","CDU/CSU"]
["Schmidt (Wetzlar), Dagmar, SPD","SPD"]
["Schmidt, Dr. Frithjof, Bündnis 90/Die Grünen","Bündnis 90/Die Grünen"]
["Schmidt (Ühlingen), Gabriele, CDU/CSU","CDU/CSU"]
["Schmidt (Berlin), Matthias, SPD","SPD"]
["Schmidt (Aachen), Ulla, SPD","SPD"]
["Schmitt (Althengstett), Ronja, CDU/CSU","CDU/CSU"]
["Schneider (Erfurt), Carsten, SPD","SPD"]
["Schnieder, Patrick, CDU/CSU","CDU/CSU"]
["Schockenhoff, Dr. Andreas, CDU/CSU *","CDU/CSU"]
["Schön (St. Wendel), Nadine, CDU/CSU","CDU/CSU"]
["Schröder (Wiesbaden), Dr. Kristina, CDU/CSU","CDU/CSU"]
["Schröder, Dr. Ole, CDU/CSU","CDU/CSU"]
["Schulte, Ursula, SPD","SPD"]
["Schulte-Drüggelte, Bernhard, CDU/CSU","CDU/CSU"]
["Schulz (Spandau), Swen, SPD","SPD"]
["Schulz-Asche, Kordula, Bündnis 90/Die Grünen","Bündnis 90/Die Grünen"]
["Schulze, Dr. Klaus-Peter, CDU/CSU","CDU/CSU"]
["Schummer, Uwe, CDU/CSU","CDU/CSU"]
["Schurer, Ewald, SPD","SPD"]
["Schuster (Weil am Rhein), Armin, CDU/CSU","CDU/CSU"]
["Schwabe, Frank, SPD","SPD"]
["Schwartze, Stefan, SPD",{"$f":"Parteizugehoerigkeit(A515)","v":"SPD"}]
["Schwarz, Andreas, SPD","SPD"]
["Schwarzelühr-Sutter, Rita, SPD","SPD"]
["Schwarzer, Christina, CDU/CSU","CDU/CSU"]
["Seif, Detlef, CDU/CSU","CDU/CSU"]
["Selle, Johannes, CDU/CSU","CDU/CSU"]
["Sendker, Reinhold, CDU/CSU","CDU/CSU"]
["Sensburg, Prof. Dr. Patrick, CDU/CSU","CDU/CSU"]
["Siebert, Bernd, CDU/CSU","CDU/CSU"]
["Sieling, Dr. Carsten, SPD","SPD"]
["Silberhorn, Thomas, CDU/CSU","CDU/CSU"]
["Singhammer, Johannes, CDU/CSU","CDU/CSU"]
["Sitte, Dr. Petra, Die Linke","Die Linke"]
["Sorge, Tino, CDU/CSU","CDU/CSU"]
["Spahn, Jens, CDU/CSU","CDU/CSU"]
["Spiering, Rainer, SPD","SPD"]
["Spinrath, Norbert, SPD","SPD"]
["Stadler, Svenja, SPD","SPD"]
["Stamm-Fibich, Martina, SPD","SPD"]
["Stauche, Carola, CDU/CSU","CDU/CSU"]
["Steffel, Dr. Frank, CDU/CSU","CDU/CSU"]
["Steffen, Sonja, SPD","SPD"]
["Stefinger, Dr. Wolfgang, CDU/CSU","CDU/CSU"]
["Stegemann, Albert, CDU/CSU","CDU/CSU"]
["Stein, Peter, CDU/CSU","CDU/CSU"]
["Steinbach, Erika, CDU/CSU","CDU/CSU"]
["Steinbrück, Peer, SPD","SPD"]
["Steineke, Sebastian, CDU/CSU","CDU/CSU"]
["Steiniger, Johannes, CDU/CSU","CDU/CSU"]
["Steinke, Kersten, Die Linke","Die Linke"]
["Steinmeier, Dr. Frank-Walter, SPD","SPD"]
["Stetten, Christian Freiherr von, CDU/CSU","CDU/CSU"]
["Stier, Dieter, CDU/CSU","CDU/CSU"]
["Stockhofe, Rita, CDU/CSU","CDU/CSU"]
["Storjohann, Gero, CDU/CSU","CDU/CSU"]
["Stracke, Stephan, CDU/CSU","CDU/CSU"]
["Strässer, Christoph, SPD","SPD"]
["Straubinger, Max, CDU/CSU","CDU/CSU"]
["Strebl, Matthäus, CDU/CSU","CDU/CSU"]
["Strengmann-Kuhn, Dr. Wolfgang, Bündnis 90/Die Grünen","Bündnis 90/Die Grünen"]
["Strenz, Karin, CDU/CSU","CDU/CSU"]
["Stritzl, Thomas, CDU/CSU","CDU/CSU"]
["Ströbele, Hans-Christian, Bündnis 90/Die Grünen","Bündnis 90/Die Grünen"]
["Strobl (Heilbronn), Thomas, CDU/CSU","CDU/CSU"]
["Strothmann, Lena, CDU/CSU","CDU/CSU"]
["Stübgen, Michael, CDU/CSU","CDU/CSU"]
["Sütterlin-Waack, Dr. Sabine, CDU/CSU","CDU/CSU"]
["Tack, Kerstin, SPD","SPD"]
["Tackmann, Dr. Kirsten, Die Linke","Die Linke"]
["Tank, Azize, Die Linke","Die Linke"]
["Tauber, Dr. Peter, CDU/CSU","CDU/CSU"]
["Tausend, Claudia, SPD","SPD"]
["Tempel, Frank, Die Linke","Die Linke"]
["Terpe, Dr. Harald, Bündnis 90/Die Grünen","Bündnis 90/Die Grünen"]
["Thews, Michael, SPD","SPD"]
["Thönnes, Franz, SPD","SPD"]
["Tiefensee, Wolfgang, SPD *","SPD"]
["Tillmann, Antje, CDU/CSU","CDU/CSU"]
["Timmermann-Fechter, Astrid, CDU/CSU","CDU/CSU"]
["Träger, Carsten, SPD","SPD"]
["Tressel, Markus, Bündnis 90/Die Grünen","Bündnis 90/Die Grünen"]
["Trittin, Jürgen, Bündnis 90/Die Grünen","Bündnis 90/Die Grünen"]
["Troost, Dr. Axel, Die Linke","Die Linke"]
["Uhl, Dr. Hans-Peter, CDU/CSU","CDU/CSU"]
["Ullrich, Dr. Volker, CDU/CSU",{"$f":"Parteizugehoerigkeit(A579)","v":"CDU/CSU"}]
["Ulrich, Alexander, Die Linke","Die Linke"]
["Vaatz, Arnold, CDU/CSU","CDU/CSU"]
["Veit, Rüdiger, SPD","SPD"]
["Veith, Oswin, CDU/CSU","CDU/CSU"]
["Verlinden, Dr. Julia, Bündnis 90/Die Grünen","Bündnis 90/Die Grünen"]
["Viesehon, Thomas, CDU/CSU","CDU/CSU"]
["Vietz, Michael, CDU/CSU","CDU/CSU"]
["Vogel (Kleinsaara), Volkmar, CDU/CSU","CDU/CSU"]
["Vogler, Kathrin, Die Linke","Die Linke"]
["Vogt, Ute, SPD","SPD"]
["Volmering, Sven, CDU/CSU","CDU/CSU"]
["Vöpel, Dirk, SPD","SPD"]
["Voßbeck-Kayser, Christel, CDU/CSU","CDU/CSU"]
["Vries, Kees de, CDU/CSU","CDU/CSU"]
["Wadephul, Dr. Johann, CDU/CSU","CDU/CSU"]
["Wagenknecht, Dr. Sahra, Die Linke","Die Linke"]
["Wagner, Doris, Bündnis 90/Die Grünen","Bündnis 90/Die Grünen"]
["Walter-Rosenheimer, Beate, Bündnis 90/Die Grünen","Bündnis 90/Die Grünen"]
["Wanderwitz, Marco, CDU/CSU","CDU/CSU"]
["Warken, Nina, CDU/CSU","CDU/CSU"]
["Wawzyniak, Halina, Die Linke","Die Linke"]
["Weber, Gabi, SPD","SPD"]
["Wegner, Kai, CDU/CSU","CDU/CSU"]
["Weiler, Albert, CDU/CSU","CDU/CSU"]
["Weinberg, Harald, Die Linke","Die Linke"]
["Weinberg (Hamburg), Marcus, CDU/CSU","CDU/CSU"]
["Weisgerber, Dr. Anja, CDU/CSU","CDU/CSU"]
["Weiß (Emmendingen), Peter, CDU/CSU","CDU/CSU"]
["Weiss (Wesel I), Sabine, CDU/CSU","CDU/CSU"]
["Wellenreuther, Ingo, CDU/CSU","CDU/CSU"]
["Wellmann, Karl-Georg, CDU/CSU","CDU/CSU"]
["Wendt, Marian, CDU/CSU","CDU/CSU"]
["Werner, Katrin, Die Linke","Die Linke"]
["Westermayer, Waldemar, CDU/CSU","CDU/CSU"]
["Westphal, Bernd, SPD","SPD"]
["Whittaker, Kai, CDU/CSU","CDU/CSU"]
["Wichtel, Peter, CDU/CSU","CDU/CSU"]
["Wicklein, Andrea, SPD","SPD"]
["Widmann-Mauz, Annette, CDU/CSU","CDU/CSU"]
["Wiese, Dirk, SPD","SPD"]
["Wiese (Ehingen), Heinz, CDU/CSU","CDU/CSU"]
["Willsch, Klaus-Peter, CDU/CSU","CDU/CSU"]
["Wilms, Dr. Valerie, Bündnis 90/Die Grünen","Bündnis 90/Die Grünen"]
["Winkelmeier-Becker, Elisabeth, CDU/CSU","CDU/CSU"]
["Wittke, Oliver, CDU/CSU","CDU/CSU"]
["Wöhrl, Dagmar G., CDU/CSU","CDU/CSU"]
["Wolff (Wolmirstedt), Waltraud, SPD","SPD"]
["Wöllert, Birgit, Die Linke","Die Linke"]
["Woltmann, Barbara, CDU/CSU","CDU/CSU"]
["Wunderlich, Jörn, Die Linke","Die Linke"]
["Yüksel, Gülistan, SPD","SPD"]
["Zdebel, Hubertus, Die Linke","Die Linke"]
["Zech, Tobias, CDU/CSU","CDU/CSU"]
["Zertik, Heinrich, CDU/CSU","CDU/CSU"]
["Zeulner, Emmi, CDU/CSU","CDU/CSU"]
["Ziegler, Dagmar, SPD","SPD"]
["Zierke, Stefan, SPD","SPD"]
["Zimmer, Prof. Dr. Matthias, CDU/CSU","CDU/CSU"]
["Zimmermann, Dr. Jens, SPD","SPD"]
["Zimmermann, Pia, Die Linke","Die Linke"]
["Zimmermann (Zwickau), Sabine, Die Linke","Die Linke"]
["Zöllmer, Manfred, SPD","SPD"]
["Zollner, Gudrun, CDU/CSU","CDU/CSU"]
["Zypries, Brigitte, SPD",{"$f":"Parteizugehoerigkeit(A643)","v":"SPD"}]